Publisher Label,Publisher URI,"Supplier","Net Amount (£)","Organisational Unit","Merchant Category Code","Purpose","Payment Date"
"Wolverhampton City Council","http://opendatacommunities.org/id/metropolitan-district-council/wolverhampton","ROYAL BK OF SCOTLAND","250.00","CIN/CP Social Work Unit - Area 6","6011","Financial Assistance In Exceptional Circ","29/12/2017"
"Wolverhampton City Council","http://opendatacommunities.org/id/metropolitan-district-council/wolverhampton","ENVATOMARKET38932863","26.95","Headstart - Learning Technologies Team","5815","Computing - Purchase of Software","29/12/2017"
"Wolverhampton City Council","http://opendatacommunities.org/id/metropolitan-district-council/wolverhampton","WWW.FINDLAY.CO.UK","1632.00","Service Director City Environment","8999","Services - Professional Fees","29/12/2017"
"Wolverhampton City Council","http://opendatacommunities.org/id/metropolitan-district-council/wolverhampton","B & Q 1243","15.37","Public Conveniences","5211","R&M - Departmental planned (external)","29/12/2017"
"Wolverhampton City Council","http://opendatacommunities.org/id/metropolitan-district-council/wolverhampton","Amazon EU","41.71","Strategic ICTS (ICT Serv Budget)","5969","Equipment - Purchase","29/12/2017"
"Wolverhampton City Council","http://opendatacommunities.org/id/metropolitan-district-council/wolverhampton","ITUNES.COM/BILL","0.79","Strategic ICTS (ICT Serv Budget)","5735","Computing - Purchase of Software","29/12/2017"
"Wolverhampton City Council","http://opendatacommunities.org/id/metropolitan-district-council/wolverhampton","B&M RETAIL","24.99","LAC Transitions Team","5310","Client Allowances","29/12/2017"
"Wolverhampton City Council","http://opendatacommunities.org/id/metropolitan-district-council/wolverhampton","LIDL UK","51.23","EIP Locality 1","5411","Grant Payments","29/12/2017"
"Wolverhampton City Council","http://opendatacommunities.org/id/metropolitan-district-council/wolverhampton","AMZ Amazon.co.uk","-20.83","Global Budgets","5969","Books","29/12/2017"
"Wolverhampton City Council","http://opendatacommunities.org/id/metropolitan-district-council/wolverhampton","DUDLEY ZOOLOGICAL GARD","66.67","EIP Locality 3","7999","Grant Payments","29/12/2017"
"Wolverhampton City Council","http://opendatacommunities.org/id/metropolitan-district-council/wolverhampton","WWW.LOCAL.GOV.UK","229.00","Workforce Development","7399","Training Expenses","29/12/2017"
"Wolverhampton City Council","http://opendatacommunities.org/id/metropolitan-district-council/wolverhampton","THE COAL AUTHORITY","91.50","Disposal Costs","9399","Services - Professional Fees","29/12/2017"
"Wolverhampton City Council","http://opendatacommunities.org/id/metropolitan-district-council/wolverhampton","CLOCKING SYSTEM","50.00","Landscape","5085","Stationery","29/12/2017"
"Wolverhampton City Council","http://opendatacommunities.org/id/metropolitan-district-council/wolverhampton","GRO HM PASSPORT OFFICE","-9.25","LAC Transitions Team","9399","Client Allowances","29/12/2017"
"Wolverhampton City Council","http://opendatacommunities.org/id/metropolitan-district-council/wolverhampton","Amazon Prime","7.99","Planning","5968","Subscriptions","29/12/2017"
"Wolverhampton City Council","http://opendatacommunities.org/id/metropolitan-district-council/wolverhampton","Virgin Trains","133.00","Members Expenses","4112","Public Transport","29/12/2017"
"Wolverhampton City Council","http://opendatacommunities.org/id/metropolitan-district-council/wolverhampton","ASDA HOME SHOPPING","66.17","Ernest Bold Court","5411","Provisions (Not for resale)","28/12/2017"
"Wolverhampton City Council","http://opendatacommunities.org/id/metropolitan-district-council/wolverhampton","Trainline","189.16","Equalities","4112","Public Transport","28/12/2017"
"Wolverhampton City Council","http://opendatacommunities.org/id/metropolitan-district-council/wolverhampton","WMCA.ORG.UK","10.00","LAC Transitions Team","9399","Client Allowances","28/12/2017"
"Wolverhampton City Council","http://opendatacommunities.org/id/metropolitan-district-council/wolverhampton","WILKO.COM","66.67","LAC Transitions Team","5722","Client Allowances","28/12/2017"
"Wolverhampton City Council","http://opendatacommunities.org/id/metropolitan-district-council/wolverhampton","Trainline","59.67","DA Care Purchasing (Spot Placements)","4112","Public Transport","28/12/2017"
"Wolverhampton City Council","http://opendatacommunities.org/id/metropolitan-district-council/wolverhampton","MCGRAW-HILL  ED","29.99","LAC Transitions Team","5192","Books","28/12/2017"
"Wolverhampton City Council","http://opendatacommunities.org/id/metropolitan-district-council/wolverhampton","Trainline","140.66","SWP - Infrastructure","4112","Public Transport","28/12/2017"
"Wolverhampton City Council","http://opendatacommunities.org/id/metropolitan-district-council/wolverhampton","Amazon UK Marketplace","54.90","Strategic ICTS (ICT Serv Budget)","5942","Books","28/12/2017"
"Wolverhampton City Council","http://opendatacommunities.org/id/metropolitan-district-council/wolverhampton","SANDHU","21.00","EIP Locality 5","5411","Grant Payments","28/12/2017"
"Wolverhampton City Council","http://opendatacommunities.org/id/metropolitan-district-council/wolverhampton","HUGHES","406.67","LAC Transitions Team","5732","Client Allowances","28/12/2017"
"Wolverhampton City Council","http://opendatacommunities.org/id/metropolitan-district-council/wolverhampton","ASDA HOME SHOPPING","-0.27","Ernest Bold Court","5411","Provisions (Not for resale)","28/12/2017"
"Wolverhampton City Council","http://opendatacommunities.org/id/metropolitan-district-council/wolverhampton","Amazon UK Marketplace","26.06","Education And Access","5942","Books","27/12/2017"
"Wolverhampton City Council","http://opendatacommunities.org/id/metropolitan-district-council/wolverhampton","FACEBK SAHMZEJAR2","85.12","Communications & Marketing - General","7311","Marketing \ Non-staff advertising","26/12/2017"
"Wolverhampton City Council","http://opendatacommunities.org/id/metropolitan-district-council/wolverhampton","FACEBK QAHMZEJAR2","414.88","Communications & Marketing - General","7311","Marketing \ Non-staff advertising","26/12/2017"
"Wolverhampton City Council","http://opendatacommunities.org/id/metropolitan-district-council/wolverhampton","WM MORRISONS","7.00","Aldersley Leisure Village","5411","Provisions (Not for resale)","26/12/2017"
"Wolverhampton City Council","http://opendatacommunities.org/id/metropolitan-district-council/wolverhampton","WWW.SOUND-DYNAMICS.CO.","49.99","Bert Williams Leisure Centre","5999","Equipment - Purchase","26/12/2017"
"Wolverhampton City Council","http://opendatacommunities.org/id/metropolitan-district-council/wolverhampton","WWW.SOUND-DYNAMICS.CO.","141.66","Bert Williams Leisure Centre","5999","Equipment - Purchase","26/12/2017"
"Wolverhampton City Council","http://opendatacommunities.org/id/metropolitan-district-council/wolverhampton","WWW.PREMIER-STORAGE.CO","32.16","Central Baths","5021","Furniture","26/12/2017"
"Wolverhampton City Council","http://opendatacommunities.org/id/metropolitan-district-council/wolverhampton","123 REG R/T","39.96","City Direct","5968","Subscriptions","26/12/2017"
"Wolverhampton City Council","http://opendatacommunities.org/id/metropolitan-district-council/wolverhampton","TVLICENSING.CO.UK","122.50","LAC Transitions Team","7392","Client Allowances","26/12/2017"
"Wolverhampton City Council","http://opendatacommunities.org/id/metropolitan-district-council/wolverhampton","CARPHONE WAREHOUSE","679.00","Strategic ICTS (ICT Serv Budget)","4812","Comms - Mobile Telephones","26/12/2017"
"Wolverhampton City Council","http://opendatacommunities.org/id/metropolitan-district-council/wolverhampton","INTERPARCEL","12.95","Central Baths","4215","Comms - Postage","26/12/2017"
"Wolverhampton City Council","http://opendatacommunities.org/id/metropolitan-district-council/wolverhampton","ASDA HOME SHOPPING","2.50","Upper Pendeford Farm Childrens Home","5411","Provisions (Not for resale)","26/12/2017"
"Wolverhampton City Council","http://opendatacommunities.org/id/metropolitan-district-council/wolverhampton","AMAZON EU AMAZON.CO.UK","33.32","Headstart Phase 3","5999","Computing - Consumables","26/12/2017"
"Wolverhampton City Council","http://opendatacommunities.org/id/metropolitan-district-council/wolverhampton","THE QUALITY HOTEL WOLV","45.00","Emergency Duty Team","7011","Services - Supplies & Services to users","26/12/2017"
"Wolverhampton City Council","http://opendatacommunities.org/id/metropolitan-district-council/wolverhampton","IKEA LIMITED","22.08","Towers Outdoor Education Centre","5712","Fixtures and Fittings - Purchases","26/12/2017"
"Wolverhampton City Council","http://opendatacommunities.org/id/metropolitan-district-council/wolverhampton","POST OFFICE COUNTER","6.50","Fostering Team & Allowances","9402","Comms - Postage","26/12/2017"
"Wolverhampton City Council","http://opendatacommunities.org/id/metropolitan-district-council/wolverhampton","TRAINLINE","-180.00","Headstart Phase 3","4112","Public Transport","26/12/2017"
"Wolverhampton City Council","http://opendatacommunities.org/id/metropolitan-district-council/wolverhampton","Trainline","221.85","Headstart Phase 3","4112","Public Transport","26/12/2017"
"Wolverhampton City Council","http://opendatacommunities.org/id/metropolitan-district-council/wolverhampton","Trainline","189.16","Headstart Phase 3","4112","Public Transport","26/12/2017"
"Wolverhampton City Council","http://opendatacommunities.org/id/metropolitan-district-council/wolverhampton","Trainline","195.33","Headstart Phase 3","4112","Public Transport","26/12/2017"
"Wolverhampton City Council","http://opendatacommunities.org/id/metropolitan-district-council/wolverhampton","Trainline","183.04","Headstart Phase 3","4112","Public Transport","26/12/2017"
"Wolverhampton City Council","http://opendatacommunities.org/id/metropolitan-district-council/wolverhampton","Trainline","189.16","Headstart Phase 3","4112","Public Transport","26/12/2017"
"Wolverhampton City Council","http://opendatacommunities.org/id/metropolitan-district-council/wolverhampton","Trainline","190.13","Headstart Phase 3","4112","Public Transport","26/12/2017"
"Wolverhampton City Council","http://opendatacommunities.org/id/metropolitan-district-council/wolverhampton","Trainline","195.33","Headstart Phase 3","4112","Public Transport","26/12/2017"
"Wolverhampton City Council","http://opendatacommunities.org/id/metropolitan-district-council/wolverhampton","Trainline","190.13","Headstart Phase 3","4112","Public Transport","26/12/2017"
"Wolverhampton City Council","http://opendatacommunities.org/id/metropolitan-district-council/wolverhampton","Cross Country Trains","7.80","Head of Strategic Commissioning � People","4112","Public Transport","26/12/2017"
"Wolverhampton City Council","http://opendatacommunities.org/id/metropolitan-district-council/wolverhampton","Amazon Prime","7.99","Technical Support","5968","Subscriptions","26/12/2017"
"Wolverhampton City Council","http://opendatacommunities.org/id/metropolitan-district-council/wolverhampton","Amazon UK Marketplace","20.39","Global Budgets","5942","Books","26/12/2017"
"Wolverhampton City Council","http://opendatacommunities.org/id/metropolitan-district-council/wolverhampton","B & Q 1243","29.17","Ernest Bold Court","5211","Equipment - R & M","26/12/2017"
"Wolverhampton City Council","http://opendatacommunities.org/id/metropolitan-district-council/wolverhampton","ASDA HOME SHOPPING","5.00","Ernest Bold Court","5411","Provisions (Not for resale)","26/12/2017"
"Wolverhampton City Council","http://opendatacommunities.org/id/metropolitan-district-council/wolverhampton","Trainline","236.13","CIN/CP Social Work Unit - Area 4","4112","Section 17","26/12/2017"
"Wolverhampton City Council","http://opendatacommunities.org/id/metropolitan-district-council/wolverhampton","LAW SOCIETY PROLOG","64.95","Legal Services","5942","Books","26/12/2017"
"Wolverhampton City Council","http://opendatacommunities.org/id/metropolitan-district-council/wolverhampton","DECATHLON UK","51.78","Upper Pendeford Farm Childrens Home","5941","Equipment - Purchase","26/12/2017"
"Wolverhampton City Council","http://opendatacommunities.org/id/metropolitan-district-council/wolverhampton","SAINSBURYS","250.00","Duke Street Bungalows","6011","Provisions (Not for resale)","26/12/2017"
"Wolverhampton City Council","http://opendatacommunities.org/id/metropolitan-district-council/wolverhampton","TFM FARM & COUNTRY SUP","87.68","Northicote Farm","5399","Materials","26/12/2017"
"Wolverhampton City Council","http://opendatacommunities.org/id/metropolitan-district-council/wolverhampton","PREMIER INN","280.82","Headstart Phase 3","3811","Accommodation Costs","26/12/2017"
"Wolverhampton City Council","http://opendatacommunities.org/id/metropolitan-district-council/wolverhampton","TRAINLINE","-174.90","Headstart Phase 3","4112","Public Transport","26/12/2017"
"Wolverhampton City Council","http://opendatacommunities.org/id/metropolitan-district-council/wolverhampton","WWW.CIRIA.ORG","63.00","Landscape","7399","Equipment - Purchase","22/12/2017"
"Wolverhampton City Council","http://opendatacommunities.org/id/metropolitan-district-council/wolverhampton","CROWN PROPERTY SERVICE","40.00","CIN/CP Social Work Unit - Area 3","7011","Accommodation Costs","22/12/2017"
"Wolverhampton City Council","http://opendatacommunities.org/id/metropolitan-district-council/wolverhampton","AMAZON EU AMAZON.CO.UK","10.68","Northicote Farm","5999","Equipment - Purchase","22/12/2017"
"Wolverhampton City Council","http://opendatacommunities.org/id/metropolitan-district-council/wolverhampton","ALLFLEX UK GROUP","13.93","Northicote Farm","5964","Equipment - Purchase","22/12/2017"
"Wolverhampton City Council","http://opendatacommunities.org/id/metropolitan-district-council/wolverhampton","Amazon UK Marketplace","4.95","Northicote Farm","5942","Equipment - Purchase","22/12/2017"
"Wolverhampton City Council","http://opendatacommunities.org/id/metropolitan-district-council/wolverhampton","B & Q 1243","13.33","Bradley Resource Centre","5211","Equipment - R & M","22/12/2017"
"Wolverhampton City Council","http://opendatacommunities.org/id/metropolitan-district-council/wolverhampton","WILKO RETAIL LIMIT","33.33","LAC Transitions Team","5722","Client Allowances","22/12/2017"
"Wolverhampton City Council","http://opendatacommunities.org/id/metropolitan-district-council/wolverhampton","ARGOS WOLVERHAMPTO","33.32","LAC Transitions Team","5310","Client Allowances","22/12/2017"
"Wolverhampton City Council","http://opendatacommunities.org/id/metropolitan-district-council/wolverhampton","W M MORRISON PLC","14.63","Ernest Bold Court","5411","Provisions (Not for resale)","22/12/2017"
"Wolverhampton City Council","http://opendatacommunities.org/id/metropolitan-district-council/wolverhampton","UKOFFICEDIRECT.CO.","-47.98","Safeguarding Admin Resource","5943","Stationery","22/12/2017"
"Wolverhampton City Council","http://opendatacommunities.org/id/metropolitan-district-council/wolverhampton","THE POST OFFICE","1.75","CIN/CP Social Work Unit - Area 4","9402","Section 17","22/12/2017"
"Wolverhampton City Council","http://opendatacommunities.org/id/metropolitan-district-council/wolverhampton","REGISTRARS OFFICE","-6.00","Head of Service - CINCP","8299","Services - Professional Fees","22/12/2017"
"Wolverhampton City Council","http://opendatacommunities.org/id/metropolitan-district-council/wolverhampton","REGISTRARS OFFICE","10.00","Head of Service - CINCP","8299","Services - Professional Fees","22/12/2017"
"Wolverhampton City Council","http://opendatacommunities.org/id/metropolitan-district-council/wolverhampton","Trainline","87.21","Legal Services","4112","Public Transport","22/12/2017"
"Wolverhampton City Council","http://opendatacommunities.org/id/metropolitan-district-council/wolverhampton","POST OFFICE COUNTER","36.72","Legal Services","9402","Comms - Postage","22/12/2017"
"Wolverhampton City Council","http://opendatacommunities.org/id/metropolitan-district-council/wolverhampton","THE RANGE","28.72","Ernest Bold Court","5311","Equipment - Purchase","22/12/2017"
"Wolverhampton City Council","http://opendatacommunities.org/id/metropolitan-district-council/wolverhampton","E01350800000000","10.00","Ernest Bold Court","6011","Stationery","22/12/2017"
"Wolverhampton City Council","http://opendatacommunities.org/id/metropolitan-district-council/wolverhampton","ASDA SUPERSTORE","9.95","Mayoral Expenses","5411","Provisions (Not for resale)","22/12/2017"
"Wolverhampton City Council","http://opendatacommunities.org/id/metropolitan-district-council/wolverhampton","SAINSBURYS PFS (1340)","1.67","Mayoral Expenses","5541","Vehicle Maintenance - Repairs","22/12/2017"
"Wolverhampton City Council","http://opendatacommunities.org/id/metropolitan-district-council/wolverhampton","E01353600000000","250.00","Childrens with Disabilities Team","6011","No Recourse to Public Funds","22/12/2017"
"Wolverhampton City Council","http://opendatacommunities.org/id/metropolitan-district-council/wolverhampton","WM MORRISONS","12.38","EIP Locality 6","5411","Provisions (Not for resale)","22/12/2017"
"Wolverhampton City Council","http://opendatacommunities.org/id/metropolitan-district-council/wolverhampton","Amazon UK Marketplace","194.85","Strategic ICTS (ICT Serv Budget)","5942","Books","22/12/2017"
"Wolverhampton City Council","http://opendatacommunities.org/id/metropolitan-district-council/wolverhampton","Amazon UK Marketplace","29.24","Strategic ICTS (ICT Serv Budget)","5942","Books","22/12/2017"
"Wolverhampton City Council","http://opendatacommunities.org/id/metropolitan-district-council/wolverhampton","AMAZON SVCS EU-UK AMAZ","21.62","Headstart Phase 3","5942","Materials","22/12/2017"
"Wolverhampton City Council","http://opendatacommunities.org/id/metropolitan-district-council/wolverhampton","AMAZON SVCS EU-UK AMAZ","7.86","Headstart Phase 3","5942","Materials","22/12/2017"
"Wolverhampton City Council","http://opendatacommunities.org/id/metropolitan-district-council/wolverhampton","Amazon EU","20.63","Headstart Phase 3","5969","Books","22/12/2017"
"Wolverhampton City Council","http://opendatacommunities.org/id/metropolitan-district-council/wolverhampton","PP DARRALJEVON","39.00","Wolverhampton Indoor and Open Market","5719","Equipment - Purchase","22/12/2017"
"Wolverhampton City Council","http://opendatacommunities.org/id/metropolitan-district-council/wolverhampton","Amazon UK Marketplace","505.13","Technical Support","5942","Computing - Purchase of Hardware","22/12/2017"
"Wolverhampton City Council","http://opendatacommunities.org/id/metropolitan-district-council/wolverhampton","ARGOS RETAIL GROUP","21.65","EIP Locality 3","5310","Grant Payments","22/12/2017"
"Wolverhampton City Council","http://opendatacommunities.org/id/metropolitan-district-council/wolverhampton","WWW.PRINTONDEMAND-WORL","117.23","Headstart - Learning Technologies Team","2741","Printing","22/12/2017"
"Wolverhampton City Council","http://opendatacommunities.org/id/metropolitan-district-council/wolverhampton","WWW.PRINTONDEMAND-WORL","117.23","Headstart - Learning Technologies Team","2741","Printing","22/12/2017"
"Wolverhampton City Council","http://opendatacommunities.org/id/metropolitan-district-council/wolverhampton","CT WOLVERHAMPTON","105.00","LAC Transitions Team","8398","Client Allowances","21/12/2017"
"Wolverhampton City Council","http://opendatacommunities.org/id/metropolitan-district-council/wolverhampton","WALSALL COUNCIL","10.00","LAC Transitions Team","9399","Client Allowances","21/12/2017"
"Wolverhampton City Council","http://opendatacommunities.org/id/metropolitan-district-council/wolverhampton","KINGSWAYSOFT","2240.49","Strategic ICTS (ICT Serv Budget)","5734","Computing - Purchase of Software","21/12/2017"
"Wolverhampton City Council","http://opendatacommunities.org/id/metropolitan-district-council/wolverhampton","Amazon UK Marketplace","15.99","Strategic Director Place","5942","Computing - Purchase of Hardware","21/12/2017"
"Wolverhampton City Council","http://opendatacommunities.org/id/metropolitan-district-council/wolverhampton","E01510300000000","80.00","Emergency Duty Team","6011","Financial Assistance In Exceptional Circ","21/12/2017"
"Wolverhampton City Council","http://opendatacommunities.org/id/metropolitan-district-council/wolverhampton","BIOTECTS LTD","54.50","Service Wide","7338","Equipment - Purchase","21/12/2017"
"Wolverhampton City Council","http://opendatacommunities.org/id/metropolitan-district-council/wolverhampton","REGISTRARS OFFICE","20.00","IMPACT","8299","Services - Fees and Charges","21/12/2017"
"Wolverhampton City Council","http://opendatacommunities.org/id/metropolitan-district-council/wolverhampton","THE POST OFFICE","65.00","Wolverhampton Indoor and Open Market","9402","Comms - Postage","21/12/2017"
"Wolverhampton City Council","http://opendatacommunities.org/id/metropolitan-district-council/wolverhampton","CUMMINGS BROTHERS LOCK","6.67","Caretakers Community Centre","7399","R&M - Departmental planned (external)","21/12/2017"
"Wolverhampton City Council","http://opendatacommunities.org/id/metropolitan-district-council/wolverhampton","GLOBE/PACKAGING EXPRES","142.80","Touring Costs","5111","Stationery","21/12/2017"
"Wolverhampton City Council","http://opendatacommunities.org/id/metropolitan-district-council/wolverhampton","Amazon UK Marketplace","17.80","Research & Development","5942","Books","21/12/2017"
"Wolverhampton City Council","http://opendatacommunities.org/id/metropolitan-district-council/wolverhampton","AMZ D T K +44 207 084","-280.00","Technical Support","5942","Computing - Purchase of Hardware","21/12/2017"
"Wolverhampton City Council","http://opendatacommunities.org/id/metropolitan-district-council/wolverhampton","ASDA SUPERSTORE","146.67","Ernest Bold Court","5411","Materials","21/12/2017"
"Wolverhampton City Council","http://opendatacommunities.org/id/metropolitan-district-council/wolverhampton","WILKO.COM","75.50","MASH","5722","Equipment - Purchase","21/12/2017"
"Wolverhampton City Council","http://opendatacommunities.org/id/metropolitan-district-council/wolverhampton","TRAINLINE","-186.00","CIN/CP Social Work Unit - Area 8","4112","Public Transport","21/12/2017"
"Wolverhampton City Council","http://opendatacommunities.org/id/metropolitan-district-council/wolverhampton","TRAINLINE","-186.00","CIN/CP Social Work Unit - Area 8","4112","Public Transport","21/12/2017"
"Wolverhampton City Council","http://opendatacommunities.org/id/metropolitan-district-council/wolverhampton","TRAINLINE","-88.00","CIN/CP Social Work Unit - Area 8","4112","Section 17","21/12/2017"
"Wolverhampton City Council","http://opendatacommunities.org/id/metropolitan-district-council/wolverhampton","Amazon UK Marketplace","4.28","Northicote Farm","5942","Comms - Mobile Telephones","21/12/2017"
"Wolverhampton City Council","http://opendatacommunities.org/id/metropolitan-district-council/wolverhampton","FLYTE SO FANCYG-KITS.C","14.33","Northicote Farm","5995","Equipment - Purchase","21/12/2017"
"Wolverhampton City Council","http://opendatacommunities.org/id/metropolitan-district-council/wolverhampton","Amazon UK Marketplace","17.58","Northicote Farm","5942","Equipment - Purchase","21/12/2017"
"Wolverhampton City Council","http://opendatacommunities.org/id/metropolitan-district-council/wolverhampton","Amazon UK Marketplace","3.99","Northicote Farm","5942","Comms - Mobile Telephones","21/12/2017"
"Wolverhampton City Council","http://opendatacommunities.org/id/metropolitan-district-council/wolverhampton","ROYAL CARPETS","125.00","LAC Transitions Team","5713","Client Allowances","21/12/2017"
"Wolverhampton City Council","http://opendatacommunities.org/id/metropolitan-district-council/wolverhampton","Amazon UK Marketplace","41.65","Collections","5942","Equipment - Purchase","21/12/2017"
"Wolverhampton City Council","http://opendatacommunities.org/id/metropolitan-district-council/wolverhampton","CODELOCKS LTD","63.25","Central Costs","5722","Equipment - Purchase","21/12/2017"
"Wolverhampton City Council","http://opendatacommunities.org/id/metropolitan-district-council/wolverhampton","B & Q 1357","72.92","Play General","5211","Materials","21/12/2017"
"Wolverhampton City Council","http://opendatacommunities.org/id/metropolitan-district-council/wolverhampton","WWW.UCAS.COM","13.00","LAC Transitions Team","8220","Client Allowances","21/12/2017"
"Wolverhampton City Council","http://opendatacommunities.org/id/metropolitan-district-council/wolverhampton","THE POST OFFICE","14.52","CIN/CP Social Work Unit - Area 4","9402","Section 17","21/12/2017"
"Wolverhampton City Council","http://opendatacommunities.org/id/metropolitan-district-council/wolverhampton","SAINSBURYS SACAT 2040","30.00","Civic Centre Catering","5411","Provisions (Not for resale)","21/12/2017"
"Wolverhampton City Council","http://opendatacommunities.org/id/metropolitan-district-council/wolverhampton","INSTIT OF OCCPTNL SAFE","115.00","Central Training","8699","Training Expenses","21/12/2017"
"Wolverhampton City Council","http://opendatacommunities.org/id/metropolitan-district-council/wolverhampton","ASDA SUPERSTORE","288.58","Upper Pendeford Farm Childrens Home","5411","Provisions (Not for resale)","21/12/2017"
"Wolverhampton City Council","http://opendatacommunities.org/id/metropolitan-district-council/wolverhampton","DUNELM (SOFT FURNISHIN","63.15","Ernest Bold Court","5714","Materials","21/12/2017"
"Wolverhampton City Council","http://opendatacommunities.org/id/metropolitan-district-council/wolverhampton","000002200500000","250.00","CIN/CP Social Work Unit - Area 6","6011","Financial Assistance In Exceptional Circ","21/12/2017"
"Wolverhampton City Council","http://opendatacommunities.org/id/metropolitan-district-council/wolverhampton","B&M RETAIL","8.32","Fostering Team & Allowances","5310","Equipment - Purchase","21/12/2017"
"Wolverhampton City Council","http://opendatacommunities.org/id/metropolitan-district-council/wolverhampton","SPEEDY STAMPS","32.55","Panel Expenses Fostering & Adoption","5972","Stationery","21/12/2017"
"Wolverhampton City Council","http://opendatacommunities.org/id/metropolitan-district-council/wolverhampton","Amazon UK Marketplace","26.63","Art Gallery","5942","Books","20/12/2017"
"Wolverhampton City Council","http://opendatacommunities.org/id/metropolitan-district-council/wolverhampton","HIMLEY HOUSE","114.13","Adoption and Residence Team & Allowances","5812","Accommodation Costs","20/12/2017"
"Wolverhampton City Council","http://opendatacommunities.org/id/metropolitan-district-council/wolverhampton","POUNDLAND","17.58","Bert Williams Leisure Centre","5310","Equipment - Purchase","20/12/2017"
"Wolverhampton City Council","http://opendatacommunities.org/id/metropolitan-district-council/wolverhampton","SAINSBURYS PFS (1340)","1.67","Mayoral Expenses","5541","Vehicle Maintenance - Repairs","20/12/2017"
"Wolverhampton City Council","http://opendatacommunities.org/id/metropolitan-district-council/wolverhampton","POST OFFICE COUNTER","144.50","Macmillan Welfare Rights","9402","Comms - Postage","20/12/2017"
"Wolverhampton City Council","http://opendatacommunities.org/id/metropolitan-district-council/wolverhampton","ICELAND","3.29","City Direct","5411","Provisions (Not for resale)","20/12/2017"
"Wolverhampton City Council","http://opendatacommunities.org/id/metropolitan-district-council/wolverhampton","POUNDWORLD RETAIL","3.10","City Direct","5310","Equipment - Purchase","20/12/2017"
"Wolverhampton City Council","http://opendatacommunities.org/id/metropolitan-district-council/wolverhampton","POUNDLAND LTD 1463","2.00","City Direct","5310","Equipment - Purchase","20/12/2017"
"Wolverhampton City Council","http://opendatacommunities.org/id/metropolitan-district-council/wolverhampton","B&M RETAIL","10.82","LAC Transitions Team","5310","Client Allowances","20/12/2017"
"Wolverhampton City Council","http://opendatacommunities.org/id/metropolitan-district-council/wolverhampton","WWW.ARGOS.CO.UK","103.28","LAC Transitions Team","5310","Client Allowances","20/12/2017"
"Wolverhampton City Council","http://opendatacommunities.org/id/metropolitan-district-council/wolverhampton","WWW.ARGOS.CO.UK","57.45","LAC Transitions Team","5310","Client Allowances","20/12/2017"
"Wolverhampton City Council","http://opendatacommunities.org/id/metropolitan-district-council/wolverhampton","Trainline","58.91","Youth Offending Team","4112","Public Transport","20/12/2017"
"Wolverhampton City Council","http://opendatacommunities.org/id/metropolitan-district-council/wolverhampton","TOOLSTATION LTD","16.62","Public Conveniences","5251","Equipment - Purchase","20/12/2017"
"Wolverhampton City Council","http://opendatacommunities.org/id/metropolitan-district-council/wolverhampton","HMCOURTS-SERVICE.G","20.00","LAC Transitions Team","9222","Client Allowances","20/12/2017"
"Wolverhampton City Council","http://opendatacommunities.org/id/metropolitan-district-council/wolverhampton","WWW.ARGOS.CO.UK","69.92","Central Baths","5310","Equipment - Purchase","20/12/2017"
"Wolverhampton City Council","http://opendatacommunities.org/id/metropolitan-district-council/wolverhampton","CROWN PROPERTY SERVICE","80.00","CIN/CP Social Work Unit - Area 3","7011","Section 17","20/12/2017"
"Wolverhampton City Council","http://opendatacommunities.org/id/metropolitan-district-council/wolverhampton","ASURION THREERESCUEINS","25.00","LAC Transitions Team","6300","Client Allowances","20/12/2017"
"Wolverhampton City Council","http://opendatacommunities.org/id/metropolitan-district-council/wolverhampton","SCREWFIX WOLVERHAM","3.91","LAC Transitions Team","5211","Client Allowances","20/12/2017"
"Wolverhampton City Council","http://opendatacommunities.org/id/metropolitan-district-council/wolverhampton","POST OFFICE COUNTER","56.00","Education Catering - General Overheads","9402","Comms - Postage","20/12/2017"
"Wolverhampton City Council","http://opendatacommunities.org/id/metropolitan-district-council/wolverhampton","123-REG.CO.UK","19.98","Technical Support","4816","Computing - Purchase of Software","20/12/2017"
"Wolverhampton City Council","http://opendatacommunities.org/id/metropolitan-district-council/wolverhampton","LION PICTURE FRAMING S","154.03","Education And Access","5999","Equipment - Purchase","20/12/2017"
"Wolverhampton City Council","http://opendatacommunities.org/id/metropolitan-district-council/wolverhampton","Amazon UK Marketplace","38.41","Education And Access","5942","Books","20/12/2017"
"Wolverhampton City Council","http://opendatacommunities.org/id/metropolitan-district-council/wolverhampton","NOVOTEL WOLVERHAMPTON","128.00","MASH","7011","Financial Assistance In Exceptional Circ","20/12/2017"
"Wolverhampton City Council","http://opendatacommunities.org/id/metropolitan-district-council/wolverhampton","B & Q 1357","8.75","Play General","5211","Materials","20/12/2017"
"Wolverhampton City Council","http://opendatacommunities.org/id/metropolitan-district-council/wolverhampton","CARVER/WOLVERHAMPTON/L","16.51","Global Budgets","5211","Materials","20/12/2017"
"Wolverhampton City Council","http://opendatacommunities.org/id/metropolitan-district-council/wolverhampton","Amazon UK Marketplace","32.49","Bradley Resource Centre","5942","Equipment - R & M","20/12/2017"
"Wolverhampton City Council","http://opendatacommunities.org/id/metropolitan-district-council/wolverhampton","SAINSBURYS 2040","16.67","Duke Street Bungalows","5411","Cleaning Supplies and Materials","20/12/2017"
"Wolverhampton City Council","http://opendatacommunities.org/id/metropolitan-district-council/wolverhampton","WWW.LOCAL.GOV.UK","199.00","Member Training","7399","Training Expenses","20/12/2017"
"Wolverhampton City Council","http://opendatacommunities.org/id/metropolitan-district-council/wolverhampton","HIRE STATION-LTD","65.00","Fountain Maintenance","7394","R&M - Departmental planned (external)","20/12/2017"
"Wolverhampton City Council","http://opendatacommunities.org/id/metropolitan-district-council/wolverhampton","HIRE STATION-LTD","255.00","Fountain Maintenance","7394","R&M - Departmental planned (external)","20/12/2017"
"Wolverhampton City Council","http://opendatacommunities.org/id/metropolitan-district-council/wolverhampton","CUMMINGS BROTHERS LOCK","100.00","Community Enablement","7399","Equipment - Purchase","20/12/2017"
"Wolverhampton City Council","http://opendatacommunities.org/id/metropolitan-district-council/wolverhampton","DIRECT FLOORING","307.50","CIN/CP Social Work Unit - Area 1","5713","Section 17","20/12/2017"
"Wolverhampton City Council","http://opendatacommunities.org/id/metropolitan-district-council/wolverhampton","Trainline","97.00","CIN/CP Social Work Unit - Area 8","4112","Public Transport","20/12/2017"
"Wolverhampton City Council","http://opendatacommunities.org/id/metropolitan-district-council/wolverhampton","CARVER/WOLVERHAMPTON/L","-6.92","Parks - Ranger Service","5211","Equipment - Purchase","20/12/2017"
"Wolverhampton City Council","http://opendatacommunities.org/id/metropolitan-district-council/wolverhampton","HOME BARGAINS WOLVERHA","0.64","Parks - Ranger Service","5251","Equipment - Purchase","20/12/2017"
"Wolverhampton City Council","http://opendatacommunities.org/id/metropolitan-district-council/wolverhampton","HOME BARGAINS WOLVERHA","5.82","Parks - Ranger Service","5251","Equipment - Purchase","20/12/2017"
"Wolverhampton City Council","http://opendatacommunities.org/id/metropolitan-district-council/wolverhampton","CARVER/WOLVERHAMPTON/L","10.61","Parks - Ranger Service","5211","Equipment - Purchase","20/12/2017"
"Wolverhampton City Council","http://opendatacommunities.org/id/metropolitan-district-council/wolverhampton","PO LOW HILL 1592","100.00","EIP Locality 7","6011","Grant Payments","20/12/2017"
"Wolverhampton City Council","http://opendatacommunities.org/id/metropolitan-district-council/wolverhampton","PO LOW HILL 1592","200.00","EIP Locality 7","6011","Grant Payments","20/12/2017"
"Wolverhampton City Council","http://opendatacommunities.org/id/metropolitan-district-council/wolverhampton","Amazon UK Marketplace","13.00","Headstart - Learning Technologies Team","5942","Computing - Purchase of Hardware","19/12/2017"
"Wolverhampton City Council","http://opendatacommunities.org/id/metropolitan-district-council/wolverhampton","NOTEMACHINE","250.00","Headstart Phase 3","6011","Financial Assistance In Exceptional Circ","19/12/2017"
"Wolverhampton City Council","http://opendatacommunities.org/id/metropolitan-district-council/wolverhampton","SAINSBURYS SACAT (2340","9.60","Mayoral Expenses","5411","Hospitality","19/12/2017"
"Wolverhampton City Council","http://opendatacommunities.org/id/metropolitan-district-council/wolverhampton","WISEPOPS","37.90","City Direct","7372","Computing - Purchase of Software","19/12/2017"
"Wolverhampton City Council","http://opendatacommunities.org/id/metropolitan-district-council/wolverhampton","UNTOUCHABLES","18.75","Cemeteries","5231","Materials","19/12/2017"
"Wolverhampton City Council","http://opendatacommunities.org/id/metropolitan-district-council/wolverhampton","ARGOS RETAIL GROUP","56.63","EIP Locality 6","5310","Grant Payments","19/12/2017"
"Wolverhampton City Council","http://opendatacommunities.org/id/metropolitan-district-council/wolverhampton","Amazon UK Marketplace","222.20","Strategic ICTS (ICT Serv Budget)","5942","Books","19/12/2017"
"Wolverhampton City Council","http://opendatacommunities.org/id/metropolitan-district-council/wolverhampton","Amazon EU","9.98","CIN/CP Social Work Unit - Area 3","5969","Section 17","19/12/2017"
"Wolverhampton City Council","http://opendatacommunities.org/id/metropolitan-district-council/wolverhampton","THE NEW BRIDGE GUEST H","560.00","CIN/CP Social Work Unit - Area 3","7011","Section 17","19/12/2017"
"Wolverhampton City Council","http://opendatacommunities.org/id/metropolitan-district-council/wolverhampton","CREST MEDICAL","25.32","Upper Pendeford Farm Childrens Home","5047","Equipment - Health and Safety","19/12/2017"
"Wolverhampton City Council","http://opendatacommunities.org/id/metropolitan-district-council/wolverhampton","ASDA SUPERSTORE","25.32","EIP Locality 5","5411","Provisions (Not for resale)","19/12/2017"
"Wolverhampton City Council","http://opendatacommunities.org/id/metropolitan-district-council/wolverhampton","ROYAL SOCIETY FOR","55.00","Work Related Studies","8398","Equipment - Purchase","19/12/2017"
"Wolverhampton City Council","http://opendatacommunities.org/id/metropolitan-district-council/wolverhampton","WOLVERHAMPTON CC","3.33","Headstart Phase 3","7523","Parking Fees","19/12/2017"
"Wolverhampton City Council","http://opendatacommunities.org/id/metropolitan-district-council/wolverhampton","POST OFFICE COUNTER","67.00","Education Catering - General Overheads","9402","Comms - Postage","19/12/2017"
"Wolverhampton City Council","http://opendatacommunities.org/id/metropolitan-district-council/wolverhampton","CURRYS ONLINE","338.99","LAC Team","5732","Financial Assistance In Exceptional Circ","19/12/2017"
"Wolverhampton City Council","http://opendatacommunities.org/id/metropolitan-district-council/wolverhampton","WILKO RETAIL LIMIT","25.35","LAC Transitions Team","5722","Client Allowances","19/12/2017"
"Wolverhampton City Council","http://opendatacommunities.org/id/metropolitan-district-council/wolverhampton","ASDA HOME SHOPPING","65.77","Ernest Bold Court","5411","Provisions (Not for resale)","19/12/2017"
"Wolverhampton City Council","http://opendatacommunities.org/id/metropolitan-district-council/wolverhampton","B & Q 1243","12.92","Play General","5211","Materials","19/12/2017"
"Wolverhampton City Council","http://opendatacommunities.org/id/metropolitan-district-council/wolverhampton","ARGOS WOLVERHAMPTO","79.92","Duke Street Bungalows","5310","Equipment - Purchase","19/12/2017"
"Wolverhampton City Council","http://opendatacommunities.org/id/metropolitan-district-council/wolverhampton","EE LIMITED R501","89.92","School Crossing Patrol","4812","Equipment - Purchase","19/12/2017"
"Wolverhampton City Council","http://opendatacommunities.org/id/metropolitan-district-council/wolverhampton","EE LIMITED R501","89.92","School Crossing Patrol","4812","Equipment - Purchase","19/12/2017"
"Wolverhampton City Council","http://opendatacommunities.org/id/metropolitan-district-council/wolverhampton","EE LIMITED R501","89.92","School Crossing Patrol","4812","Equipment - Purchase","19/12/2017"
"Wolverhampton City Council","http://opendatacommunities.org/id/metropolitan-district-council/wolverhampton","EE LIMITED R501","89.92","School Crossing Patrol","4812","Equipment - Purchase","19/12/2017"
"Wolverhampton City Council","http://opendatacommunities.org/id/metropolitan-district-council/wolverhampton","EE LIMITED R501","89.92","School Crossing Patrol","4812","Equipment - Purchase","19/12/2017"
"Wolverhampton City Council","http://opendatacommunities.org/id/metropolitan-district-council/wolverhampton","EE LIMITED R501","89.92","School Crossing Patrol","4812","Equipment - Purchase","19/12/2017"
"Wolverhampton City Council","http://opendatacommunities.org/id/metropolitan-district-council/wolverhampton","EE LIMITED R501","89.92","School Crossing Patrol","4812","Equipment - Purchase","19/12/2017"
"Wolverhampton City Council","http://opendatacommunities.org/id/metropolitan-district-council/wolverhampton","HMCOURTS-SERVICE.G","75.00","Mental Health Assessment & Care Mgmt","9222","Services - Fees and Charges","19/12/2017"
"Wolverhampton City Council","http://opendatacommunities.org/id/metropolitan-district-council/wolverhampton","ASDA SUPERSTORE","9.81","CIN/CP Social Work Unit - Area 5","5411","No Recourse to Public Funds","19/12/2017"
"Wolverhampton City Council","http://opendatacommunities.org/id/metropolitan-district-council/wolverhampton","ASDA SUPERSTORE","11.37","CIN/CP Social Work Unit - Area 5","5411","No Recourse to Public Funds","19/12/2017"
"Wolverhampton City Council","http://opendatacommunities.org/id/metropolitan-district-council/wolverhampton","ASDA SUPERSTORE","14.11","CIN/CP Social Work Unit - Area 5","5411","No Recourse to Public Funds","19/12/2017"
"Wolverhampton City Council","http://opendatacommunities.org/id/metropolitan-district-council/wolverhampton","Amazon UK Marketplace","4.98","Street Lighting Maintenance","5942","Books","19/12/2017"
"Wolverhampton City Council","http://opendatacommunities.org/id/metropolitan-district-council/wolverhampton","AMAZON SVCS EU-UK AMAZ","23.32","Headstart Phase 3","5942","Computing - Consumables","18/12/2017"
"Wolverhampton City Council","http://opendatacommunities.org/id/metropolitan-district-council/wolverhampton","AMAZON SVCS EU-UK AMAZ","78.31","Headstart Phase 3","5942","Equipment - Purchase","18/12/2017"
"Wolverhampton City Council","http://opendatacommunities.org/id/metropolitan-district-council/wolverhampton","NOVOTEL WOLVERHAMPTON","101.80","EIP Locality 1","7011","Grant Payments","18/12/2017"
"Wolverhampton City Council","http://opendatacommunities.org/id/metropolitan-district-council/wolverhampton","LOYD 89 CHURCH STREET","10.00","EIP Locality 1","6011","Grant Payments","18/12/2017"
"Wolverhampton City Council","http://opendatacommunities.org/id/metropolitan-district-council/wolverhampton","Amazon UK Marketplace","15.23","Bradley Resource Centre","5942","Cleaning Supplies and Materials","18/12/2017"
"Wolverhampton City Council","http://opendatacommunities.org/id/metropolitan-district-council/wolverhampton","Weebly","129.00","Technical Support","5817","Computing - Purchase of Software","18/12/2017"
"Wolverhampton City Council","http://opendatacommunities.org/id/metropolitan-district-council/wolverhampton","Wix.com","46.57","Technical Support","5817","Subscriptions","18/12/2017"
"Wolverhampton City Council","http://opendatacommunities.org/id/metropolitan-district-council/wolverhampton","AMAZON EU AMAZON.CO.UK","12.58","Global Budgets","5999","Books","18/12/2017"
"Wolverhampton City Council","http://opendatacommunities.org/id/metropolitan-district-council/wolverhampton","Amazon UK Marketplace","18.92","Global Budgets","5942","Books","18/12/2017"
"Wolverhampton City Council","http://opendatacommunities.org/id/metropolitan-district-council/wolverhampton","ASDA HOME SHOPPING","61.12","Ernest Bold Court","5411","Provisions (Not for resale)","18/12/2017"
"Wolverhampton City Council","http://opendatacommunities.org/id/metropolitan-district-council/wolverhampton","COSTCUTTER WEDNESFIELD","3.16","Duke Street Bungalows","5411","Cleaning Supplies and Materials","18/12/2017"
"Wolverhampton City Council","http://opendatacommunities.org/id/metropolitan-district-council/wolverhampton","W M MORRISONS","32.81","Children & Family Contact Services","5411","Provisions (Not for resale)","18/12/2017"
"Wolverhampton City Council","http://opendatacommunities.org/id/metropolitan-district-council/wolverhampton","NAMESCO","58.92","Communications & Marketing - General","4816","Computing - Purchase of Software","18/12/2017"
"Wolverhampton City Council","http://opendatacommunities.org/id/metropolitan-district-council/wolverhampton","NAMESCO","34.97","Work Box","4816","Computing - Purchase of Software","18/12/2017"
"Wolverhampton City Council","http://opendatacommunities.org/id/metropolitan-district-council/wolverhampton","NAMESCO","44.96","Communications & Marketing - General","4816","Computing - Purchase of Software","18/12/2017"
"Wolverhampton City Council","http://opendatacommunities.org/id/metropolitan-district-council/wolverhampton","ASPLI SAFETY EQUIP","476.59","Public Health Support Costs","5211","Materials","18/12/2017"
"Wolverhampton City Council","http://opendatacommunities.org/id/metropolitan-district-council/wolverhampton","Amazon UK Marketplace","48.30","Strategic ICTS (ICT Serv Budget)","5942","Books","18/12/2017"
"Wolverhampton City Council","http://opendatacommunities.org/id/metropolitan-district-council/wolverhampton","Amazon UK Marketplace","5.39","Strategic ICTS (ICT Serv Budget)","5942","Books","18/12/2017"
"Wolverhampton City Council","http://opendatacommunities.org/id/metropolitan-district-council/wolverhampton","Amazon UK Marketplace","6.54","Strategic ICTS (ICT Serv Budget)","5942","Books","18/12/2017"
"Wolverhampton City Council","http://opendatacommunities.org/id/metropolitan-district-council/wolverhampton","Amazon UK Marketplace","103.96","Strategic ICTS (ICT Serv Budget)","5942","Books","18/12/2017"
"Wolverhampton City Council","http://opendatacommunities.org/id/metropolitan-district-council/wolverhampton","WWW.ARGOS.CO.UK","78.64","Language Studies Delivery Area","5310","Equipment - Purchase","18/12/2017"
"Wolverhampton City Council","http://opendatacommunities.org/id/metropolitan-district-council/wolverhampton","WWW.ARGOS.CO.UK","11.99","Language Studies Delivery Area","5310","Equipment - Purchase","18/12/2017"
"Wolverhampton City Council","http://opendatacommunities.org/id/metropolitan-district-council/wolverhampton","ASDA 4233","30.83","LAC Transitions Team","5411","Independant Living Allowance","18/12/2017"
"Wolverhampton City Council","http://opendatacommunities.org/id/metropolitan-district-council/wolverhampton","AMAZON SVCS EU-UK AMAZ","49.99","Headstart Phase 3","5942","Equipment - Purchase","18/12/2017"
"Wolverhampton City Council","http://opendatacommunities.org/id/metropolitan-district-council/wolverhampton","CARVER/WOLVERHAMPTON/L","37.50","Northicote Farm","5211","Equipment - R & M","18/12/2017"
"Wolverhampton City Council","http://opendatacommunities.org/id/metropolitan-district-council/wolverhampton","MICHAEL BACHYK","926.45","Catering Overhead Account","5422","Catering","18/12/2017"
"Wolverhampton City Council","http://opendatacommunities.org/id/metropolitan-district-council/wolverhampton","LAKELAND.LIMITED","36.92","Towers Outdoor Education Centre","5399","Equipment - Purchase","18/12/2017"
"Wolverhampton City Council","http://opendatacommunities.org/id/metropolitan-district-council/wolverhampton","ARGOS WOLVERHAMPTO","17.47","Headstart - Young People Engagement","5310","Equipment - Purchase","18/12/2017"
"Wolverhampton City Council","http://opendatacommunities.org/id/metropolitan-district-council/wolverhampton","WM MORRISONS","12.25","Aldersley Leisure Village","5411","Provisions (Not for resale)","18/12/2017"
"Wolverhampton City Council","http://opendatacommunities.org/id/metropolitan-district-council/wolverhampton","HOME BARGAINS","9.62","Bert Williams Leisure Centre","5251","Equipment - Purchase","18/12/2017"
"Wolverhampton City Council","http://opendatacommunities.org/id/metropolitan-district-council/wolverhampton","POUNDLAND","16.79","Bert Williams Leisure Centre","5310","Equipment - Purchase","18/12/2017"
"Wolverhampton City Council","http://opendatacommunities.org/id/metropolitan-district-council/wolverhampton","POUNDLAND","17.54","Bert Williams Leisure Centre","5310","Equipment - Purchase","18/12/2017"
"Wolverhampton City Council","http://opendatacommunities.org/id/metropolitan-district-council/wolverhampton","DUNELM (SOFT FURNISHIN","62.47","Bert Williams Leisure Centre","5714","Equipment - Purchase","18/12/2017"
"Wolverhampton City Council","http://opendatacommunities.org/id/metropolitan-district-council/wolverhampton","HOME BARGAINS","22.89","Bert Williams Leisure Centre","5251","Equipment - Purchase","18/12/2017"
"Wolverhampton City Council","http://opendatacommunities.org/id/metropolitan-district-council/wolverhampton","THE RANGE","21.52","Bert Williams Leisure Centre","5311","Equipment - Purchase","18/12/2017"
"Wolverhampton City Council","http://opendatacommunities.org/id/metropolitan-district-council/wolverhampton","NAMESCO","23.96","Communications & Marketing - General","4816","Computing - Purchase of Software","18/12/2017"
"Wolverhampton City Council","http://opendatacommunities.org/id/metropolitan-district-council/wolverhampton","DUNELM ONLINE ORDER","173.29","Ernest Bold Court","5714","Equipment - Purchase","18/12/2017"
"Wolverhampton City Council","http://opendatacommunities.org/id/metropolitan-district-council/wolverhampton","FARMFOODS- HEATH T","45.60","Winter Maintenance","5411","Provisions (Not for resale)","18/12/2017"
"Wolverhampton City Council","http://opendatacommunities.org/id/metropolitan-district-council/wolverhampton","NOVOTEL WOLVERHAMPTON","59.00","CIN/CP Social Work Unit - Area 1","7011","No Recourse to Public Funds","18/12/2017"
"Wolverhampton City Council","http://opendatacommunities.org/id/metropolitan-district-council/wolverhampton","KONICA MINOLTA BUSINES","184.18","Music Support Team","7399","Equipment - R & M","18/12/2017"
"Wolverhampton City Council","http://opendatacommunities.org/id/metropolitan-district-council/wolverhampton","Trainline","47.38","Music Support Team","4112","Services - Professional Fees","18/12/2017"
"Wolverhampton City Council","http://opendatacommunities.org/id/metropolitan-district-council/wolverhampton","SAINSBURYS","250.00","Duke Street Bungalows","6011","Provisions (Not for resale)","18/12/2017"
"Wolverhampton City Council","http://opendatacommunities.org/id/metropolitan-district-council/wolverhampton","HOME BARGAINS","14.95","Duke Street Bungalows","5251","Equipment - Purchase","18/12/2017"
"Wolverhampton City Council","http://opendatacommunities.org/id/metropolitan-district-council/wolverhampton","ALDI 73 772","24.99","Duke Street Bungalows","5411","Equipment - Purchase","18/12/2017"
"Wolverhampton City Council","http://opendatacommunities.org/id/metropolitan-district-council/wolverhampton","ASDA SUPERSTORE","26.31","EIP Locality 5","5411","Provisions (Not for resale)","18/12/2017"
"Wolverhampton City Council","http://opendatacommunities.org/id/metropolitan-district-council/wolverhampton","Concentric Franchise L","-255.00","CIN/CP Social Work Unit - Area 3","8999","Accommodation Costs","18/12/2017"
"Wolverhampton City Council","http://opendatacommunities.org/id/metropolitan-district-council/wolverhampton","STAGE WORLD","8.50","Wolverhampton Indoor and Open Market","7296","Equipment - Hire","18/12/2017"
"Wolverhampton City Council","http://opendatacommunities.org/id/metropolitan-district-council/wolverhampton","Amazon UK Marketplace","11.65","Members Expenses","5942","Equipment - Purchase","18/12/2017"
"Wolverhampton City Council","http://opendatacommunities.org/id/metropolitan-district-council/wolverhampton","ITUNES.COM/BILL","2.07","LAC Education Team (LACE)","5735","Computing - Purchase of Software","15/12/2017"
"Wolverhampton City Council","http://opendatacommunities.org/id/metropolitan-district-council/wolverhampton","HMCOURTS-SERVICE.G","20.00","LAC Transitions Team","9222","Client Allowances","15/12/2017"
"Wolverhampton City Council","http://opendatacommunities.org/id/metropolitan-district-council/wolverhampton","WWW.ARGOS.CO.UK","151.62","LAC Transitions Team","5310","Client Allowances","15/12/2017"
"Wolverhampton City Council","http://opendatacommunities.org/id/metropolitan-district-council/wolverhampton","Trainline","79.97","LAC Transitions Team","4112","Client Allowances","15/12/2017"
"Wolverhampton City Council","http://opendatacommunities.org/id/metropolitan-district-council/wolverhampton","ONE STOP 3201","7.00","EIP Locality 6","5411","Equipment - Purchase","15/12/2017"
"Wolverhampton City Council","http://opendatacommunities.org/id/metropolitan-district-council/wolverhampton","ONE STOP 3201","30.00","EIP Locality 6","5411","Grant Payments","15/12/2017"
"Wolverhampton City Council","http://opendatacommunities.org/id/metropolitan-district-council/wolverhampton","CARD FACTORY","10.90","Adoption and Residence Team & Allowances","5947","Services - Supplies & Services to users","15/12/2017"
"Wolverhampton City Council","http://opendatacommunities.org/id/metropolitan-district-council/wolverhampton","PLURALSIGHT","22.29","Strategic ICTS (ICT Serv Budget)","8299","Training Expenses","15/12/2017"
"Wolverhampton City Council","http://opendatacommunities.org/id/metropolitan-district-council/wolverhampton","ASDA HOME SHOPPING","212.40","Upper Pendeford Farm Childrens Home","5411","Provisions (Not for resale)","15/12/2017"
"Wolverhampton City Council","http://opendatacommunities.org/id/metropolitan-district-council/wolverhampton","ASDA HOME SHOPPING","2.34","Upper Pendeford Farm Childrens Home","5411","Provisions (Not for resale)","15/12/2017"
"Wolverhampton City Council","http://opendatacommunities.org/id/metropolitan-district-council/wolverhampton","LONDON MIDLAND WEB","-95.00","Service Director Disab & Mental Health","4112","Public Transport","15/12/2017"
"Wolverhampton City Council","http://opendatacommunities.org/id/metropolitan-district-council/wolverhampton","Trainline","136.99","Service Director Disab & Mental Health","4112","Public Transport","15/12/2017"
"Wolverhampton City Council","http://opendatacommunities.org/id/metropolitan-district-council/wolverhampton","WWWOPLEXCAREERSCOM","9.99","IMPACT","8299","Training Expenses","15/12/2017"
"Wolverhampton City Council","http://opendatacommunities.org/id/metropolitan-district-council/wolverhampton","B & Q 1243","9.14","Bert Williams Leisure Centre","5211","Materials","15/12/2017"
"Wolverhampton City Council","http://opendatacommunities.org/id/metropolitan-district-council/wolverhampton","WWW.MAPLIN.CO.UK","20.82","Mayoral Expenses","5732","Equipment - Purchase","15/12/2017"
"Wolverhampton City Council","http://opendatacommunities.org/id/metropolitan-district-council/wolverhampton","SAINSBURYS PFS (1340)","1.67","Mayoral Expenses","5541","Vehicle Maintenance - Repairs","15/12/2017"
"Wolverhampton City Council","http://opendatacommunities.org/id/metropolitan-district-council/wolverhampton","EBUYER (UK) LTD","84.27","Macmillan Welfare Rights","5722","Equipment - Purchase","15/12/2017"
"Wolverhampton City Council","http://opendatacommunities.org/id/metropolitan-district-council/wolverhampton","BARCLAYS BANK PLC","100.00","Childrens with Disabilities Team","6011","No Recourse to Public Funds","15/12/2017"
"Wolverhampton City Council","http://opendatacommunities.org/id/metropolitan-district-council/wolverhampton","BARCLAYS BANK PLC","250.00","Childrens with Disabilities Team","6011","Financial Assistance In Exceptional Circ","15/12/2017"
"Wolverhampton City Council","http://opendatacommunities.org/id/metropolitan-district-council/wolverhampton","TRAINLINE","-60.00","Admin & Support","4112","Public Transport","15/12/2017"
"Wolverhampton City Council","http://opendatacommunities.org/id/metropolitan-district-council/wolverhampton","TRAINLINE","-24.60","Admin & Support","4112","Public Transport","15/12/2017"
"Wolverhampton City Council","http://opendatacommunities.org/id/metropolitan-district-council/wolverhampton","TRAINLINE","-60.00","Admin & Support","4112","Public Transport","15/12/2017"
"Wolverhampton City Council","http://opendatacommunities.org/id/metropolitan-district-council/wolverhampton","PAYPAL  BARNARDOS","50.00","EIP Locality 8","8999","Training Expenses","15/12/2017"
"Wolverhampton City Council","http://opendatacommunities.org/id/metropolitan-district-council/wolverhampton","LOYD 37 CHURCH STREET","100.00","EIP Locality 8","6011","Grant Payments","15/12/2017"
"Wolverhampton City Council","http://opendatacommunities.org/id/metropolitan-district-council/wolverhampton","LOOP11.COM","152.95","City Direct","7372","Computing - Purchase of Software","15/12/2017"
"Wolverhampton City Council","http://opendatacommunities.org/id/metropolitan-district-council/wolverhampton","REDWINGS LODGE","5.99","Emergency Duty Team","7011","Services - Supplies & Services to users","15/12/2017"
"Wolverhampton City Council","http://opendatacommunities.org/id/metropolitan-district-council/wolverhampton","REDWINGS LODGE","32.95","Emergency Duty Team","7011","Services - Supplies & Services to users","15/12/2017"
"Wolverhampton City Council","http://opendatacommunities.org/id/metropolitan-district-council/wolverhampton","O E METCALFE","260.01","Towers Outdoor Education Centre","5499","Provisions (Not for resale)","15/12/2017"
"Wolverhampton City Council","http://opendatacommunities.org/id/metropolitan-district-council/wolverhampton","Amazon UK Marketplace","42.90","Towers Outdoor Education Centre","5942","Fixtures and Fittings - Purchases","15/12/2017"
"Wolverhampton City Council","http://opendatacommunities.org/id/metropolitan-district-council/wolverhampton","HOLIDAY INNS","79.00","Emergency Duty Team","3501","Services - Supplies & Services to users","15/12/2017"
"Wolverhampton City Council","http://opendatacommunities.org/id/metropolitan-district-council/wolverhampton","ARGOS WOLVERHAMPTO","41.66","Fostering Team & Allowances","5310","Equipment - Purchase","15/12/2017"
"Wolverhampton City Council","http://opendatacommunities.org/id/metropolitan-district-council/wolverhampton","FACEBK HB8HMENAR2","102.93","Communications & Marketing - General","7311","Marketing \ Non-staff advertising","15/12/2017"
"Wolverhampton City Council","http://opendatacommunities.org/id/metropolitan-district-council/wolverhampton","FACEBK GB8HMENAR2","397.07","Communications & Marketing - General","7311","Marketing \ Non-staff advertising","15/12/2017"
"Wolverhampton City Council","http://opendatacommunities.org/id/metropolitan-district-council/wolverhampton","WWW.FOCUSONPHONICS.CO.","46.72","Headstart Phase 3","5942","Equipment - Purchase","15/12/2017"
"Wolverhampton City Council","http://opendatacommunities.org/id/metropolitan-district-council/wolverhampton","WILKO.COM","88.00","Collections","5722","Materials","15/12/2017"
"Wolverhampton City Council","http://opendatacommunities.org/id/metropolitan-district-council/wolverhampton","BRITANNIA","39.50","MASH","7011","Services - Supplies & Services to users","15/12/2017"
"Wolverhampton City Council","http://opendatacommunities.org/id/metropolitan-district-council/wolverhampton","NOVOTEL WOLVERHAMPTON","109.00","CIN/CP Social Work Unit - Area 1","7011","No Recourse to Public Funds","15/12/2017"
"Wolverhampton City Council","http://opendatacommunities.org/id/metropolitan-district-council/wolverhampton","CURRYS ONLINE","159.99","EIP Locality 5","5732","Equipment - Purchase","15/12/2017"
"Wolverhampton City Council","http://opendatacommunities.org/id/metropolitan-district-council/wolverhampton","Trainline","101.49","Headstart Phase 3","4112","Public Transport","15/12/2017"
"Wolverhampton City Council","http://opendatacommunities.org/id/metropolitan-district-council/wolverhampton","SANGHAS SUPERMARKET","41.00","EIP Locality 1","5411","Grant Payments","15/12/2017"
"Wolverhampton City Council","http://opendatacommunities.org/id/metropolitan-district-council/wolverhampton","Trainline","19.23","SEN Sensory Inclusion","4112","Public Transport","15/12/2017"
"Wolverhampton City Council","http://opendatacommunities.org/id/metropolitan-district-council/wolverhampton","PAYPAL  NEEDFLYERS","54.17","Education And Access","7311","Materials","15/12/2017"
"Wolverhampton City Council","http://opendatacommunities.org/id/metropolitan-district-council/wolverhampton","L A BLINDS","175.00","LAC Transitions Team","5722","Client Allowances","15/12/2017"
"Wolverhampton City Council","http://opendatacommunities.org/id/metropolitan-district-council/wolverhampton","MORELOCK SIGNS LIMITED","15.69","Car Parks Operational Staff","5085","Equipment - Purchase","15/12/2017"
"Wolverhampton City Council","http://opendatacommunities.org/id/metropolitan-district-council/wolverhampton","REGISTRARS OFFICE","30.00","Head of Service - CINCP","8299","Services - Professional Fees","15/12/2017"
"Wolverhampton City Council","http://opendatacommunities.org/id/metropolitan-district-council/wolverhampton","REGISTRARS OFFICE","20.00","Head of Service - CINCP","8299","Services - Professional Fees","15/12/2017"
"Wolverhampton City Council","http://opendatacommunities.org/id/metropolitan-district-council/wolverhampton","WWW.SEVERNTRENTSEARCHE","325.00","Disposal Costs","4900","Services - Professional Fees","15/12/2017"
"Wolverhampton City Council","http://opendatacommunities.org/id/metropolitan-district-council/wolverhampton","TRAINLINE","-56.40","Mental Health Assessment & Care Mgmt","4112","Public Transport","15/12/2017"
"Wolverhampton City Council","http://opendatacommunities.org/id/metropolitan-district-council/wolverhampton","J VAN VLIET BIRMINGHAM","96.98","Creative Studies Delivery Area","5399","Materials for resale","15/12/2017"
"Wolverhampton City Council","http://opendatacommunities.org/id/metropolitan-district-council/wolverhampton","ARENA EVENT SERVICES G","-189.00","Civic Hall Out-house Promotions","5811","Equipment - Hire","14/12/2017"
"Wolverhampton City Council","http://opendatacommunities.org/id/metropolitan-district-council/wolverhampton","FACEBK GM3TLDSG52","161.26","Audience Development","7311","Marketing \ Non-staff advertising","14/12/2017"
"Wolverhampton City Council","http://opendatacommunities.org/id/metropolitan-district-council/wolverhampton","FACEBK EM3TLDSG52","38.74","Audience Development","7311","Marketing \ Non-staff advertising","14/12/2017"
"Wolverhampton City Council","http://opendatacommunities.org/id/metropolitan-district-council/wolverhampton","TESCO STORES 6667","5.00","Towers Outdoor Education Centre","5411","Provisions (Not for resale)","14/12/2017"
"Wolverhampton City Council","http://opendatacommunities.org/id/metropolitan-district-council/wolverhampton","WYNNSTAY ARGICULTURAL","40.09","Towers Outdoor Education Centre","5311","Fixtures and Fittings - Purchases","14/12/2017"
"Wolverhampton City Council","http://opendatacommunities.org/id/metropolitan-district-council/wolverhampton","CRESTA WORLD TRAVEL","36.22","Admin & Support","4722","Public Transport","14/12/2017"
"Wolverhampton City Council","http://opendatacommunities.org/id/metropolitan-district-council/wolverhampton","ASDA SUPERSTORE","23.82","LAC Transitions Team","5411","Client Allowances","14/12/2017"
"Wolverhampton City Council","http://opendatacommunities.org/id/metropolitan-district-council/wolverhampton","ARGOS LTD","276.17","LAC Transitions Team","5310","Client Allowances","14/12/2017"
"Wolverhampton City Council","http://opendatacommunities.org/id/metropolitan-district-council/wolverhampton","ARGOS LTD","15.82","LAC Transitions Team","5310","Client Allowances","14/12/2017"
"Wolverhampton City Council","http://opendatacommunities.org/id/metropolitan-district-council/wolverhampton","REGISTRARS OFFICE","10.00","Adoption and Residence Team & Allowances","8299","Services - Fees and Charges","14/12/2017"
"Wolverhampton City Council","http://opendatacommunities.org/id/metropolitan-district-council/wolverhampton","B & Q 1243","17.95","Public Conveniences","5211","R&M - Departmental planned (external)","14/12/2017"
"Wolverhampton City Council","http://opendatacommunities.org/id/metropolitan-district-council/wolverhampton","WWW.MAPLIN.CO.UK","27.48","Strategic ICTS (ICT Serv Budget)","5732","Equipment - Purchase","14/12/2017"
"Wolverhampton City Council","http://opendatacommunities.org/id/metropolitan-district-council/wolverhampton","Amazon Prime","-7.99","LAC Transitions Team","5968","Subscriptions","14/12/2017"
"Wolverhampton City Council","http://opendatacommunities.org/id/metropolitan-district-council/wolverhampton","NATIONAL EXPRESS LIMIT","60.40","LAC Transitions Team","4131","Client Allowances","14/12/2017"
"Wolverhampton City Council","http://opendatacommunities.org/id/metropolitan-district-council/wolverhampton","CROWN PROPERTY SERVICE","280.00","CIN/CP Social Work Unit - Area 3","7011","Section 17","14/12/2017"
"Wolverhampton City Council","http://opendatacommunities.org/id/metropolitan-district-council/wolverhampton","E020539 0000000","116.67","Emergency Duty Team","6011","Financial Assistance In Exceptional Circ","14/12/2017"
"Wolverhampton City Council","http://opendatacommunities.org/id/metropolitan-district-council/wolverhampton","AMAZON SVCS EU-UK AMAZ","33.27","Public Health Support Costs","5942","Books","14/12/2017"
"Wolverhampton City Council","http://opendatacommunities.org/id/metropolitan-district-council/wolverhampton","GO CARZ","3.57","MASH","4121","Client Transport","14/12/2017"
"Wolverhampton City Council","http://opendatacommunities.org/id/metropolitan-district-council/wolverhampton","PRIMARK","7.50","EIP Locality 1","5651","Services - Supplies & Services to users","14/12/2017"
"Wolverhampton City Council","http://opendatacommunities.org/id/metropolitan-district-council/wolverhampton","WWW.GOV.UK","20.00","Private Sector Housing","8999","Services - Professional Fees","14/12/2017"
"Wolverhampton City Council","http://opendatacommunities.org/id/metropolitan-district-council/wolverhampton","CT WOLVERHAMPTON","85.00","EIP Locality 1","8398","Grant Payments","14/12/2017"
"Wolverhampton City Council","http://opendatacommunities.org/id/metropolitan-district-council/wolverhampton","WWW.DAYEX.CO.UK","2779.65","Learning Disabilities Management","5714","Equipment - Purchase","14/12/2017"
"Wolverhampton City Council","http://opendatacommunities.org/id/metropolitan-district-council/wolverhampton","PAYPAL  BANANAPRINT","-1.84","Technical Support","8931","Services - Professional Fees","14/12/2017"
"Wolverhampton City Council","http://opendatacommunities.org/id/metropolitan-district-council/wolverhampton","Amazon UK Marketplace","19.49","Technical Support","5942","Equipment - Purchase","14/12/2017"
"Wolverhampton City Council","http://opendatacommunities.org/id/metropolitan-district-council/wolverhampton","SAINSBURYS 2040","36.36","Ernest Bold Court","5411","Provisions (Not for resale)","14/12/2017"
"Wolverhampton City Council","http://opendatacommunities.org/id/metropolitan-district-council/wolverhampton","Trainline","197.47","Safeguarding Admin Resource","4112","Public Transport","14/12/2017"
"Wolverhampton City Council","http://opendatacommunities.org/id/metropolitan-district-council/wolverhampton","LOYD WEDNESFIELD WOLVE","250.00","Duke Street Bungalows","6011","Provisions (Not for resale)","14/12/2017"
"Wolverhampton City Council","http://opendatacommunities.org/id/metropolitan-district-council/wolverhampton","LOYD WEDNESFIELD WOLVE","250.00","Duke Street Bungalows","6011","Provisions (Not for resale)","14/12/2017"
"Wolverhampton City Council","http://opendatacommunities.org/id/metropolitan-district-council/wolverhampton","CO-OPERATIVE FOOD","18.35","CIN/CP Social Work Unit - Area 7","5411","Provisions (Not for resale)","14/12/2017"
"Wolverhampton City Council","http://opendatacommunities.org/id/metropolitan-district-council/wolverhampton","WILKO.COM","100.00","Education And Access","5722","Materials","14/12/2017"
"Wolverhampton City Council","http://opendatacommunities.org/id/metropolitan-district-council/wolverhampton","Amazon UK Marketplace","3.60","Street Cleansing Overheads","5942","Stationery","14/12/2017"
"Wolverhampton City Council","http://opendatacommunities.org/id/metropolitan-district-council/wolverhampton","Amazon UK Marketplace","2.92","Landscape","5942","Stationery","14/12/2017"
"Wolverhampton City Council","http://opendatacommunities.org/id/metropolitan-district-council/wolverhampton","CITY DIRECT","40.00","CIN/CP Social Work Unit - Area 1","8299","Section 17","14/12/2017"
"Wolverhampton City Council","http://opendatacommunities.org/id/metropolitan-district-council/wolverhampton","WWW.ABO.ORG.UK","400.00","Music Support Team","7399","Services - Professional Fees","14/12/2017"
"Wolverhampton City Council","http://opendatacommunities.org/id/metropolitan-district-council/wolverhampton","HINDES HOTEL","47.50","CIN/CP Social Work Unit - Area 8","5734","Accommodation Costs","14/12/2017"
"Wolverhampton City Council","http://opendatacommunities.org/id/metropolitan-district-council/wolverhampton","Trainline","101.49","CIN/CP Social Work Unit - Area 8","4112","Section 17","14/12/2017"
"Wolverhampton City Council","http://opendatacommunities.org/id/metropolitan-district-council/wolverhampton","Trainline","201.45","CIN/CP Social Work Unit - Area 8","4112","Public Transport","14/12/2017"
"Wolverhampton City Council","http://opendatacommunities.org/id/metropolitan-district-council/wolverhampton","Trainline","201.45","CIN/CP Social Work Unit - Area 8","4112","Public Transport","14/12/2017"
"Wolverhampton City Council","http://opendatacommunities.org/id/metropolitan-district-council/wolverhampton","SAINSBURYS SACAT (2340","10.67","Mayoral Expenses","5411","Hospitality","14/12/2017"
"Wolverhampton City Council","http://opendatacommunities.org/id/metropolitan-district-council/wolverhampton","TIMPSON LTD","10.00","Strategic ICTS (ICT Serv Budget)","7251","Fixtures and Fittings - R&M","14/12/2017"
"Wolverhampton City Council","http://opendatacommunities.org/id/metropolitan-district-council/wolverhampton","WWW.BANGTIDYCOSTUMES.C","34.98","Wolverhampton Indoor and Open Market","5947","Equipment - Purchase","14/12/2017"
"Wolverhampton City Council","http://opendatacommunities.org/id/metropolitan-district-council/wolverhampton","Virgin Trains","43.20","Members Expenses","4112","Public Transport","14/12/2017"
"Wolverhampton City Council","http://opendatacommunities.org/id/metropolitan-district-council/wolverhampton","Amazon UK Marketplace","20.82","Wolverhampton Indoor and Open Market","5942","Equipment - Purchase","14/12/2017"
"Wolverhampton City Council","http://opendatacommunities.org/id/metropolitan-district-council/wolverhampton","VDU01 F&B","21.66","IMPACT","7011","Services - Supplies & Services to users","13/12/2017"
"Wolverhampton City Council","http://opendatacommunities.org/id/metropolitan-district-council/wolverhampton","LOVE2SHOP.CO.UK","80.00","Work Box","8641","Educ Trips, Holidays, Outings, Activity","13/12/2017"
"Wolverhampton City Council","http://opendatacommunities.org/id/metropolitan-district-council/wolverhampton","NAMESCO","34.97","Communications & Marketing - General","4816","Computing - Purchase of Software","13/12/2017"
"Wolverhampton City Council","http://opendatacommunities.org/id/metropolitan-district-council/wolverhampton","B&M RETAIL","67.44","LAC Transitions Team","5310","Client Allowances","13/12/2017"
"Wolverhampton City Council","http://opendatacommunities.org/id/metropolitan-district-council/wolverhampton","LOVE2SHOP.CO.UK","203.50","Healthy Lifestyles Team","8641","Educ Trips, Holidays, Outings, Activity","13/12/2017"
"Wolverhampton City Council","http://opendatacommunities.org/id/metropolitan-district-council/wolverhampton","LOVE2SHOP.CO.UK","203.50","Healthy Lifestyles Team","8641","Educ Trips, Holidays, Outings, Activity","13/12/2017"
"Wolverhampton City Council","http://opendatacommunities.org/id/metropolitan-district-council/wolverhampton","QUARK","690.00","Strategic ICTS (ICT Serv Budget)","5734","Computing - Purchase of Software","13/12/2017"
"Wolverhampton City Council","http://opendatacommunities.org/id/metropolitan-district-council/wolverhampton","E01510300000000","191.67","Emergency Duty Team","6011","Financial Assistance In Exceptional Circ","13/12/2017"
"Wolverhampton City Council","http://opendatacommunities.org/id/metropolitan-district-council/wolverhampton","ASDA SUPERSTORE","6.18","EIP Locality 5","5411","Provisions (Not for resale)","13/12/2017"
"Wolverhampton City Council","http://opendatacommunities.org/id/metropolitan-district-council/wolverhampton","SCREWFIX DIRECT","1461.89","Central Costs","5211","Equipment - Purchase","13/12/2017"
"Wolverhampton City Council","http://opendatacommunities.org/id/metropolitan-district-council/wolverhampton","SHROPSHIRE COFFEE","326.06","Cafe","5300","Equipment - Purchase","13/12/2017"
"Wolverhampton City Council","http://opendatacommunities.org/id/metropolitan-district-council/wolverhampton","NATIONWIDE","30.00","EIP Locality 1","6011","Financial Assistance In Exceptional Circ","13/12/2017"
"Wolverhampton City Council","http://opendatacommunities.org/id/metropolitan-district-council/wolverhampton","NOTEMACHINE","250.00","CIN/CP Social Work Unit - Area 6","6011","Financial Assistance In Exceptional Circ","13/12/2017"
"Wolverhampton City Council","http://opendatacommunities.org/id/metropolitan-district-council/wolverhampton","Virgin Trains","194.00","Adoption and Residence Team & Allowances","4112","Public Transport","13/12/2017"
"Wolverhampton City Council","http://opendatacommunities.org/id/metropolitan-district-council/wolverhampton","Virgin Trains","184.90","Adoption and Residence Team & Allowances","4112","Public Transport","13/12/2017"
"Wolverhampton City Council","http://opendatacommunities.org/id/metropolitan-district-council/wolverhampton","C L JONES LIMITED","438.80","Towers Outdoor Education Centre","5211","Fixtures and Fittings - Purchases","13/12/2017"
"Wolverhampton City Council","http://opendatacommunities.org/id/metropolitan-district-council/wolverhampton","WWW.THEWORKS.CO.UK","63.33","Headstart Phase 3","5310","Equipment - Purchase","13/12/2017"
"Wolverhampton City Council","http://opendatacommunities.org/id/metropolitan-district-council/wolverhampton","AMAZON UK RETAIL AMAZO","11.67","Headstart Phase 3","5999","Books","13/12/2017"
"Wolverhampton City Council","http://opendatacommunities.org/id/metropolitan-district-council/wolverhampton","AMAZON.CO.UK","11.65","Headstart Phase 3","5942","Equipment - Purchase","13/12/2017"
"Wolverhampton City Council","http://opendatacommunities.org/id/metropolitan-district-council/wolverhampton","BAKER ROSS LTD","40.79","Headstart Phase 3","5970","Materials","13/12/2017"
"Wolverhampton City Council","http://opendatacommunities.org/id/metropolitan-district-council/wolverhampton","WWW.TONERGIANT.CO.UK","166.56","Headstart Hubs","5943","Stationery","13/12/2017"
"Wolverhampton City Council","http://opendatacommunities.org/id/metropolitan-district-council/wolverhampton","VDU01 F&B","2.00","IMPACT","7011","Services - Supplies & Services to users","13/12/2017"
"Wolverhampton City Council","http://opendatacommunities.org/id/metropolitan-district-council/wolverhampton","AMAZON.CO.UK","24.94","Learning Disabilities Management","5942","Equipment - Purchase","13/12/2017"
"Wolverhampton City Council","http://opendatacommunities.org/id/metropolitan-district-council/wolverhampton","E01510300000000","200.00","MASH","6011","Financial Assistance In Exceptional Circ","13/12/2017"
"Wolverhampton City Council","http://opendatacommunities.org/id/metropolitan-district-council/wolverhampton","MICROSOFT 1 YEAR MINEC","134.40","Learning Technologies","5816","Computing - Purchase of Software","13/12/2017"
"Wolverhampton City Council","http://opendatacommunities.org/id/metropolitan-district-council/wolverhampton","Amazon UK Marketplace","5.09","Technical Support","5942","Equipment - Purchase","13/12/2017"
"Wolverhampton City Council","http://opendatacommunities.org/id/metropolitan-district-council/wolverhampton","AMAZON UK PRIME AMZN.C","7.99","Education And Access","5968","Subscriptions","13/12/2017"
"Wolverhampton City Council","http://opendatacommunities.org/id/metropolitan-district-council/wolverhampton","AMAZON.CO.UK","12.02","Civic Centre","5942","Books","13/12/2017"
"Wolverhampton City Council","http://opendatacommunities.org/id/metropolitan-district-council/wolverhampton","J VAN VLIET BIRMINGHAM","63.95","Creative Studies Delivery Area","5399","Materials","13/12/2017"
"Wolverhampton City Council","http://opendatacommunities.org/id/metropolitan-district-council/wolverhampton","VANQUISH INTEGRATED PE","220.00","Passenger Transport - General","5734","Stationery","13/12/2017"
"Wolverhampton City Council","http://opendatacommunities.org/id/metropolitan-district-council/wolverhampton","VANQUISH INTEGRATED PE","110.00","Ground Maintenance East","5734","Materials","13/12/2017"
"Wolverhampton City Council","http://opendatacommunities.org/id/metropolitan-district-council/wolverhampton","Amazon UK Marketplace","77.50","Culwell Street Depot","5942","Books","13/12/2017"
"Wolverhampton City Council","http://opendatacommunities.org/id/metropolitan-district-council/wolverhampton","HOME BARGAINS WOLVERHA","22.87","Parks - Ranger Service","5251","Equipment - Purchase","13/12/2017"
"Wolverhampton City Council","http://opendatacommunities.org/id/metropolitan-district-council/wolverhampton","CARVER/WOLVERHAMPTON/L","13.24","Parks - Ranger Service","5211","Equipment - Purchase","13/12/2017"
"Wolverhampton City Council","http://opendatacommunities.org/id/metropolitan-district-council/wolverhampton","TESCO DELIVERY SAVER1","3.49","Towers Outdoor Education Centre","5411","Provisions (Not for resale)","12/12/2017"
"Wolverhampton City Council","http://opendatacommunities.org/id/metropolitan-district-council/wolverhampton","000002200500000","40.00","Ernest Bold Court","6011","Client Transport","12/12/2017"
"Wolverhampton City Council","http://opendatacommunities.org/id/metropolitan-district-council/wolverhampton","WM MORRISON 024","25.72","Ernest Bold Court","5411","Provisions (Not for resale)","12/12/2017"
"Wolverhampton City Council","http://opendatacommunities.org/id/metropolitan-district-council/wolverhampton","SCREWFIX WOLVERHAM","31.66","Public Conveniences","5211","Protective Clothing","12/12/2017"
"Wolverhampton City Council","http://opendatacommunities.org/id/metropolitan-district-council/wolverhampton","BRITANNIA","102.00","MASH","7011","Services - Supplies & Services to users","12/12/2017"
"Wolverhampton City Council","http://opendatacommunities.org/id/metropolitan-district-council/wolverhampton","WWW.DYNMARK.COM","24.00","Pupil & Student Support","7372","Computing - Purchase of Software","12/12/2017"
"Wolverhampton City Council","http://opendatacommunities.org/id/metropolitan-district-council/wolverhampton","CARVER/WOLVERHAMPTON/L","34.50","Culwell Street Depot","5211","Materials","12/12/2017"
"Wolverhampton City Council","http://opendatacommunities.org/id/metropolitan-district-council/wolverhampton","000002200500000","10.00","EIP Locality 1","6011","Grant Payments","12/12/2017"
"Wolverhampton City Council","http://opendatacommunities.org/id/metropolitan-district-council/wolverhampton","THE POST OFFICE","1.75","EIP Locality 1","9402","Comms - Postage","12/12/2017"
"Wolverhampton City Council","http://opendatacommunities.org/id/metropolitan-district-council/wolverhampton","NOVOTEL WOLVERHAMPTON","51.45","EIP Locality 1","7011","Grant Payments","12/12/2017"
"Wolverhampton City Council","http://opendatacommunities.org/id/metropolitan-district-council/wolverhampton","FSPRG.UK","5.05","Technical Support","5818","Subscriptions","12/12/2017"
"Wolverhampton City Council","http://opendatacommunities.org/id/metropolitan-district-council/wolverhampton","Amazon EU","20.83","Global Budgets","5969","Books","12/12/2017"
"Wolverhampton City Council","http://opendatacommunities.org/id/metropolitan-district-council/wolverhampton","WWW.ARGOS.CO.UK","68.94","LAC Transitions Team","5310","Client Allowances","12/12/2017"
"Wolverhampton City Council","http://opendatacommunities.org/id/metropolitan-district-council/wolverhampton","Trainline","19.94","Head of Service - CINCP","4112","Public Transport","12/12/2017"
"Wolverhampton City Council","http://opendatacommunities.org/id/metropolitan-district-council/wolverhampton","WALSALL COUNCIL","12.00","LAC Transitions Team","9399","Client Allowances","12/12/2017"
"Wolverhampton City Council","http://opendatacommunities.org/id/metropolitan-district-council/wolverhampton","Trainline","199.41","CIN/CP Social Work Unit - Area 4","4112","Section 17","12/12/2017"
"Wolverhampton City Council","http://opendatacommunities.org/id/metropolitan-district-council/wolverhampton","Trainline","125.46","CIN/CP Social Work Unit - Area 4","4112","Section 17","12/12/2017"
"Wolverhampton City Council","http://opendatacommunities.org/id/metropolitan-district-council/wolverhampton","REGISTRARS OFFICE","30.00","Head of Service - CINCP","8299","Services - Professional Fees","12/12/2017"
"Wolverhampton City Council","http://opendatacommunities.org/id/metropolitan-district-council/wolverhampton","THE FLOWER STALL","20.83","Mayoral Expenses","5992","Hospitality","12/12/2017"
"Wolverhampton City Council","http://opendatacommunities.org/id/metropolitan-district-council/wolverhampton","ASDA STORES 4452","12.21","Winter Maintenance","5411","Provisions (Not for resale)","12/12/2017"
"Wolverhampton City Council","http://opendatacommunities.org/id/metropolitan-district-council/wolverhampton","Amazon UK Marketplace","15.67","Music Support Team","5942","Equipment - Purchase","12/12/2017"
"Wolverhampton City Council","http://opendatacommunities.org/id/metropolitan-district-council/wolverhampton","PREMIER INN","-7.49","Adoption and Residence Team & Allowances","3811","Accommodation Costs","12/12/2017"
"Wolverhampton City Council","http://opendatacommunities.org/id/metropolitan-district-council/wolverhampton","TFM FARM & COUNTRY SUP","2.50","Northicote Farm","5399","Equipment - R & M","12/12/2017"
"Wolverhampton City Council","http://opendatacommunities.org/id/metropolitan-district-council/wolverhampton","TFM FARM & COUNTRY SUP","56.61","Northicote Farm","5399","Equipment - Purchase","12/12/2017"
"Wolverhampton City Council","http://opendatacommunities.org/id/metropolitan-district-council/wolverhampton","THE QUALITY HOTEL WOLV","132.00","Emergency Duty Team","7011","Services - Supplies & Services to users","11/12/2017"
"Wolverhampton City Council","http://opendatacommunities.org/id/metropolitan-district-council/wolverhampton","FUEL CARD SERVICES LTD","421.07","Towers Outdoor Education Centre","7399","Petrol","11/12/2017"
"Wolverhampton City Council","http://opendatacommunities.org/id/metropolitan-district-council/wolverhampton","TRAINLINE","-59.00","CIN/CP Social Work Unit - Area 6","4112","Section 17","11/12/2017"
"Wolverhampton City Council","http://opendatacommunities.org/id/metropolitan-district-council/wolverhampton","Trainline","61.71","CIN/CP Social Work Unit - Area 6","4112","Section 17","11/12/2017"
"Wolverhampton City Council","http://opendatacommunities.org/id/metropolitan-district-council/wolverhampton","Trainline","61.71","CIN/CP Social Work Unit - Area 6","4112","Section 17","11/12/2017"
"Wolverhampton City Council","http://opendatacommunities.org/id/metropolitan-district-council/wolverhampton","NOTEMACHINE","200.00","Headstart Phase 3","6011","Financial Assistance In Exceptional Circ","11/12/2017"
"Wolverhampton City Council","http://opendatacommunities.org/id/metropolitan-district-council/wolverhampton","HOME BARGAINS WOLVERHA","22.25","Aldersley Leisure Village","5251","Equipment - Purchase","11/12/2017"
"Wolverhampton City Council","http://opendatacommunities.org/id/metropolitan-district-council/wolverhampton","REGISTRARS OFFICE","20.00","IMPACT","8299","Training Expenses","11/12/2017"
"Wolverhampton City Council","http://opendatacommunities.org/id/metropolitan-district-council/wolverhampton","Amazon UK Marketplace","44.94","Community Enablement","5942","Books","11/12/2017"
"Wolverhampton City Council","http://opendatacommunities.org/id/metropolitan-district-council/wolverhampton","SAINSBURYS PFS (1340)","1.67","Mayoral Expenses","5541","Vehicle Maintenance - Repairs","11/12/2017"
"Wolverhampton City Council","http://opendatacommunities.org/id/metropolitan-district-council/wolverhampton","VWO.com","45.46","City Direct","7399","Equipment - Purchase","11/12/2017"
"Wolverhampton City Council","http://opendatacommunities.org/id/metropolitan-district-council/wolverhampton","WEST MID TRAVEL","121.20","Youth Offending Team","4131","Public Transport","11/12/2017"
"Wolverhampton City Council","http://opendatacommunities.org/id/metropolitan-district-council/wolverhampton","AMAZON UK RETAIL AMAZO","224.85","Strategic ICTS (ICT Serv Budget)","5999","Equipment - Purchase","11/12/2017"
"Wolverhampton City Council","http://opendatacommunities.org/id/metropolitan-district-council/wolverhampton","Amazon EU","22.47","Strategic ICTS (ICT Serv Budget)","5969","Equipment - Purchase","11/12/2017"
"Wolverhampton City Council","http://opendatacommunities.org/id/metropolitan-district-council/wolverhampton","WWWBHANGRABLAZECOM","20.00","WV Active Business Support","7997","Services - Professional Fees","11/12/2017"
"Wolverhampton City Council","http://opendatacommunities.org/id/metropolitan-district-council/wolverhampton","THE QUALITY HOTEL WOLV","35.96","MASH","7011","Services - Supplies & Services to users","11/12/2017"
"Wolverhampton City Council","http://opendatacommunities.org/id/metropolitan-district-council/wolverhampton","THE QUALITY HOTEL WOLV","35.96","MASH","7011","Services - Supplies & Services to users","11/12/2017"
"Wolverhampton City Council","http://opendatacommunities.org/id/metropolitan-district-council/wolverhampton","BRITANNIA","99.00","MASH","7011","Services - Supplies & Services to users","11/12/2017"
"Wolverhampton City Council","http://opendatacommunities.org/id/metropolitan-district-council/wolverhampton","PAYPAL  TOPBEDDINGC","7.49","LAC Transitions Team","5611","Client Allowances","11/12/2017"
"Wolverhampton City Council","http://opendatacommunities.org/id/metropolitan-district-council/wolverhampton","WOLVERHAMPTON CC","5.42","Headstart Phase 3","7523","Parking Fees","11/12/2017"
"Wolverhampton City Council","http://opendatacommunities.org/id/metropolitan-district-council/wolverhampton","WWW.VIKING-DIRECT.CO.U","200.19","Archives","5111","Stationery","11/12/2017"
"Wolverhampton City Council","http://opendatacommunities.org/id/metropolitan-district-council/wolverhampton","WWW.COFFEESUPPLIESDIRE","31.66","Archives","5331","Materials for resale","11/12/2017"
"Wolverhampton City Council","http://opendatacommunities.org/id/metropolitan-district-council/wolverhampton","HOBBY CRAFT LTD","16.50","Ernest Bold Court","5970","Materials","11/12/2017"
"Wolverhampton City Council","http://opendatacommunities.org/id/metropolitan-district-council/wolverhampton","NOVOTEL WOLVERHAMPTON","204.00","EIP Locality 1","7011","Grant Payments","11/12/2017"
"Wolverhampton City Council","http://opendatacommunities.org/id/metropolitan-district-council/wolverhampton","NATWEST BANK","200.00","Duke Street Bungalows","6011","Provisions (Not for resale)","11/12/2017"
"Wolverhampton City Council","http://opendatacommunities.org/id/metropolitan-district-council/wolverhampton","Amazon UK Marketplace","32.67","SEN Sensory Inclusion","5942","Equipment - Purchase","11/12/2017"
"Wolverhampton City Council","http://opendatacommunities.org/id/metropolitan-district-council/wolverhampton","IKEA LIMITED","32.50","Craftplay","5712","Equipment - Purchase","11/12/2017"
"Wolverhampton City Council","http://opendatacommunities.org/id/metropolitan-district-council/wolverhampton","AMAZON.CO.UK","280.00","Technical Support","5942","Computing - Purchase of Hardware","11/12/2017"
"Wolverhampton City Council","http://opendatacommunities.org/id/metropolitan-district-council/wolverhampton","MOBI TECHNO LTD","100.00","Technical Support","4812","Comms - Mobile Telephones","11/12/2017"
"Wolverhampton City Council","http://opendatacommunities.org/id/metropolitan-district-council/wolverhampton","PAYPAL  BANANAPRINT","41.90","Technical Support","8931","Services - Professional Fees","11/12/2017"
"Wolverhampton City Council","http://opendatacommunities.org/id/metropolitan-district-council/wolverhampton","B & Q 1243","12.50","Learning Disabilities Management","5211","Equipment - R & M","11/12/2017"
"Wolverhampton City Council","http://opendatacommunities.org/id/metropolitan-district-council/wolverhampton","ASDA HOME SHOPPING","69.04","Ernest Bold Court","5411","Provisions (Not for resale)","11/12/2017"
"Wolverhampton City Council","http://opendatacommunities.org/id/metropolitan-district-council/wolverhampton","STUDIOS PARISIE","2032.91","Strategic Director Place","6513","Accommodation Costs","11/12/2017"
"Wolverhampton City Council","http://opendatacommunities.org/id/metropolitan-district-council/wolverhampton","WWW.STAPLES.CO.UK","15.58","Welfare Rights","5943","Stationery","11/12/2017"
"Wolverhampton City Council","http://opendatacommunities.org/id/metropolitan-district-council/wolverhampton","J VAN VLIET BIRMINGHAM","74.00","Creative Studies Delivery Area","5399","Materials for resale","11/12/2017"
"Wolverhampton City Council","http://opendatacommunities.org/id/metropolitan-district-council/wolverhampton","Amazon Prime","7.99","Street Lighting Maintenance","5968","Subscriptions","11/12/2017"
"Wolverhampton City Council","http://opendatacommunities.org/id/metropolitan-district-council/wolverhampton","TFM FARM & COUNTRY SUP","121.05","Northicote Farm","5399","Equipment - Purchase","11/12/2017"
"Wolverhampton City Council","http://opendatacommunities.org/id/metropolitan-district-council/wolverhampton","Amazon UK Marketplace","58.61","Music Support Team","5942","Equipment - Purchase","11/12/2017"
"Wolverhampton City Council","http://opendatacommunities.org/id/metropolitan-district-council/wolverhampton","AMAZON.CO.UK","40.85","Music Support Team","5942","Equipment - Purchase","11/12/2017"
"Wolverhampton City Council","http://opendatacommunities.org/id/metropolitan-district-council/wolverhampton","Amazon UK Marketplace","125.00","Music Support Team","5942","Equipment - Purchase","11/12/2017"
"Wolverhampton City Council","http://opendatacommunities.org/id/metropolitan-district-council/wolverhampton","SAINSBURYS SACAT 2040","16.67","Duke Street Bungalows","5411","Equipment - Purchase","11/12/2017"
"Wolverhampton City Council","http://opendatacommunities.org/id/metropolitan-district-council/wolverhampton","QUARTIX LTD","547.00","Strategic ICTS (ICT Serv Budget)","5533","Vehicle Maintenance - Repairs","11/12/2017"
"Wolverhampton City Council","http://opendatacommunities.org/id/metropolitan-district-council/wolverhampton","CONCENTRIC LETTINGS LT","262.88","CIN/CP Social Work Unit - Area 3","8999","Accommodation Costs","11/12/2017"
"Wolverhampton City Council","http://opendatacommunities.org/id/metropolitan-district-council/wolverhampton","WWW.WMCA.CO.UK","176.00","CIN/CP Social Work Unit - Area 3","9399","Client Transport","11/12/2017"
"Wolverhampton City Council","http://opendatacommunities.org/id/metropolitan-district-council/wolverhampton","PREMIER INN","56.67","Mayoral Expenses","3811","Accommodation Costs","11/12/2017"
"Wolverhampton City Council","http://opendatacommunities.org/id/metropolitan-district-council/wolverhampton","Virgin Trains","83.60","Mayoral Expenses","4112","Public Transport","11/12/2017"
"Wolverhampton City Council","http://opendatacommunities.org/id/metropolitan-district-council/wolverhampton","WWW.ARGOS.CO.UK","253.28","LAC Transitions Team","5310","Client Allowances","08/12/2017"
"Wolverhampton City Council","http://opendatacommunities.org/id/metropolitan-district-council/wolverhampton","ASDA SUPERSTORE","8.86","Cemeteries","5411","Provisions (Not for resale)","08/12/2017"
"Wolverhampton City Council","http://opendatacommunities.org/id/metropolitan-district-council/wolverhampton","CARVER/WOLVERHAMPTON/L","29.34","Cemeteries","5211","Materials","08/12/2017"
"Wolverhampton City Council","http://opendatacommunities.org/id/metropolitan-district-council/wolverhampton","ASDA SUPERSTORE","31.00","EIP Locality 6","5411","Equipment - Purchase","08/12/2017"
"Wolverhampton City Council","http://opendatacommunities.org/id/metropolitan-district-council/wolverhampton","Trainline","199.72","Service Director City Economy","4112","Public Transport","08/12/2017"
"Wolverhampton City Council","http://opendatacommunities.org/id/metropolitan-district-council/wolverhampton","SCREWFIX WOLVERHAM","5.65","Public Conveniences","5211","R&M - Departmental planned (external)","08/12/2017"
"Wolverhampton City Council","http://opendatacommunities.org/id/metropolitan-district-council/wolverhampton","Amazon UK Marketplace","37.04","Strategic ICTS (ICT Serv Budget)","5942","Computing - Purchase of Hardware","08/12/2017"
"Wolverhampton City Council","http://opendatacommunities.org/id/metropolitan-district-council/wolverhampton","ASDA HOME SHOPPING","-0.48","Upper Pendeford Farm Childrens Home","5411","Provisions (Not for resale)","08/12/2017"
"Wolverhampton City Council","http://opendatacommunities.org/id/metropolitan-district-council/wolverhampton","ASDA HOME SHOPPING","257.48","Upper Pendeford Farm Childrens Home","5411","Provisions (Not for resale)","08/12/2017"
"Wolverhampton City Council","http://opendatacommunities.org/id/metropolitan-district-council/wolverhampton","E020539 0000000","30.00","Emergency Duty Team","6011","Services - Bank Charges","08/12/2017"
"Wolverhampton City Council","http://opendatacommunities.org/id/metropolitan-district-council/wolverhampton","THE QUEEN VICTORIA HOT","108.00","MASH","7011","Services - Supplies & Services to users","08/12/2017"
"Wolverhampton City Council","http://opendatacommunities.org/id/metropolitan-district-council/wolverhampton","NOVOTEL WOLVERHAMPTON","412.50","EIP Locality 1","7011","Services - Supplies & Services to users","08/12/2017"
"Wolverhampton City Council","http://opendatacommunities.org/id/metropolitan-district-council/wolverhampton","ICELAND","6.43","Civic Centre Catering","5411","Provisions (Not for resale)","08/12/2017"
"Wolverhampton City Council","http://opendatacommunities.org/id/metropolitan-district-council/wolverhampton","POUNDLAND LTD 1463","2.00","Civic Centre Catering","5310","Equipment - Purchase","08/12/2017"
"Wolverhampton City Council","http://opendatacommunities.org/id/metropolitan-district-council/wolverhampton","WALSALL COUNCIL","172.00","Statutory Services (10RM)","9399","Services - Fees and Charges","08/12/2017"
"Wolverhampton City Council","http://opendatacommunities.org/id/metropolitan-district-council/wolverhampton","Trainline","104.09","Inclusion Support","4112","Public Transport","08/12/2017"
"Wolverhampton City Council","http://opendatacommunities.org/id/metropolitan-district-council/wolverhampton","WWW.LABC.UK.COM","150.00","Building Consultancy","7399","Services - Consultants","08/12/2017"
"Wolverhampton City Council","http://opendatacommunities.org/id/metropolitan-district-council/wolverhampton","WWW.ICO.GOV.UK","35.00","Members Expenses","9399","Subscriptions","08/12/2017"
"Wolverhampton City Council","http://opendatacommunities.org/id/metropolitan-district-council/wolverhampton","WWW.ICO.GOV.UK","35.00","Members Expenses","9399","Subscriptions","08/12/2017"
"Wolverhampton City Council","http://opendatacommunities.org/id/metropolitan-district-council/wolverhampton","WWW.ICO.GOV.UK","35.00","Members Expenses","9399","Subscriptions","08/12/2017"
"Wolverhampton City Council","http://opendatacommunities.org/id/metropolitan-district-council/wolverhampton","WWW.ICO.GOV.UK","35.00","Members Expenses","9399","Subscriptions","08/12/2017"
"Wolverhampton City Council","http://opendatacommunities.org/id/metropolitan-district-council/wolverhampton","Amazon UK Marketplace","18.32","Licensing - General","5942","Equipment - Purchase","08/12/2017"
"Wolverhampton City Council","http://opendatacommunities.org/id/metropolitan-district-council/wolverhampton","Amazon EU","10.82","Back Scanning Team","5969","Equipment - Purchase","08/12/2017"
"Wolverhampton City Council","http://opendatacommunities.org/id/metropolitan-district-council/wolverhampton","Amazon UK Marketplace","249.89","Art Gallery","5942","Equipment - Purchase","08/12/2017"
"Wolverhampton City Council","http://opendatacommunities.org/id/metropolitan-district-council/wolverhampton","Amazon UK Marketplace","70.99","WMMD PROJECT (SchoolWork)","5942","Equipment - Purchase","08/12/2017"
"Wolverhampton City Council","http://opendatacommunities.org/id/metropolitan-district-council/wolverhampton","WWW.JOHNLEWIS.COM","21.50","Delivery & OCE Development","5311","Equipment - Purchase","08/12/2017"
"Wolverhampton City Council","http://opendatacommunities.org/id/metropolitan-district-council/wolverhampton","ITUNES.COM/BILL","0.99","Headstart - Learning Technologies Team","5735","Computing - Purchase of Software","08/12/2017"
"Wolverhampton City Council","http://opendatacommunities.org/id/metropolitan-district-council/wolverhampton","TESCO DIRECT","72.92","Headstart Phase 3","5999","Equipment - Purchase","08/12/2017"
"Wolverhampton City Council","http://opendatacommunities.org/id/metropolitan-district-council/wolverhampton","Trainline","57.72","DA Care Purchasing (Spot Placements)","4112","Public Transport","08/12/2017"
"Wolverhampton City Council","http://opendatacommunities.org/id/metropolitan-district-council/wolverhampton","NOTEMACHINE","100.00","Childrens with Disabilities Team","6011","No Recourse to Public Funds","08/12/2017"
"Wolverhampton City Council","http://opendatacommunities.org/id/metropolitan-district-council/wolverhampton","NOTEMACHINE","250.00","Childrens with Disabilities Team","6011","Financial Assistance In Exceptional Circ","08/12/2017"
"Wolverhampton City Council","http://opendatacommunities.org/id/metropolitan-district-council/wolverhampton","Trainline","123.93","Admin & Support","4112","Public Transport","08/12/2017"
"Wolverhampton City Council","http://opendatacommunities.org/id/metropolitan-district-council/wolverhampton","WEST COAST TRAINS","7.60","City Direct","4112","Public Transport","08/12/2017"
"Wolverhampton City Council","http://opendatacommunities.org/id/metropolitan-district-council/wolverhampton","B&M RETAIL","155.37","LAC Transitions Team","5310","Client Allowances","08/12/2017"
"Wolverhampton City Council","http://opendatacommunities.org/id/metropolitan-district-council/wolverhampton","B&M RETAIL LTD","17.50","LAC Transitions Team","5310","Client Allowances","08/12/2017"
"Wolverhampton City Council","http://opendatacommunities.org/id/metropolitan-district-council/wolverhampton","CARVER/WOLVERHAMPTON/L","11.54","Culwell Street Depot","5211","R&M - Departmental planned (external)","08/12/2017"
"Wolverhampton City Council","http://opendatacommunities.org/id/metropolitan-district-council/wolverhampton","Amazon UK Marketplace","7.34","SEN Sensory Inclusion","5942","Equipment - Purchase","08/12/2017"
"Wolverhampton City Council","http://opendatacommunities.org/id/metropolitan-district-council/wolverhampton","AMAZON.CO.UK","7.35","SEN Sensory Inclusion","5942","Equipment - Purchase","08/12/2017"
"Wolverhampton City Council","http://opendatacommunities.org/id/metropolitan-district-council/wolverhampton","Amazon EU","76.87","SEN Sensory Inclusion","5969","Equipment - Purchase","08/12/2017"
"Wolverhampton City Council","http://opendatacommunities.org/id/metropolitan-district-council/wolverhampton","Amazon UK Marketplace","14.98","SEN Sensory Inclusion","5942","Equipment - Purchase","08/12/2017"
"Wolverhampton City Council","http://opendatacommunities.org/id/metropolitan-district-council/wolverhampton","Amazon UK Marketplace","16.69","SEN Sensory Inclusion","5942","Equipment - Purchase","08/12/2017"
"Wolverhampton City Council","http://opendatacommunities.org/id/metropolitan-district-council/wolverhampton","PAYPAL  123REGLIMIT","15.99","Technical Support","4816","Computing - Purchase of Software","08/12/2017"
"Wolverhampton City Council","http://opendatacommunities.org/id/metropolitan-district-council/wolverhampton","HUGHES","156.67","EIP Locality 3","5732","Grant Payments","08/12/2017"
"Wolverhampton City Council","http://opendatacommunities.org/id/metropolitan-district-council/wolverhampton","BARCLAYS BANK PLC","100.00","EIP Locality 3","6011","Grant Payments","08/12/2017"
"Wolverhampton City Council","http://opendatacommunities.org/id/metropolitan-district-council/wolverhampton","ROYAL CARPETS","183.33","LAC Transitions Team","5713","Client Allowances","08/12/2017"
"Wolverhampton City Council","http://opendatacommunities.org/id/metropolitan-district-council/wolverhampton","WWW.PRIMROSE.CO.UK","-75.00","Play General","5261","Equipment - Purchase","08/12/2017"
"Wolverhampton City Council","http://opendatacommunities.org/id/metropolitan-district-council/wolverhampton","MORELOCK SIGNS LIMITED","31.38","Car Parks Operational Staff","5085","Materials","08/12/2017"
"Wolverhampton City Council","http://opendatacommunities.org/id/metropolitan-district-council/wolverhampton","PAYPAL  THEROTA","170.28","Civic Halls Non Direct Management A/C","5735","Computing - Purchase of Software","08/12/2017"
"Wolverhampton City Council","http://opendatacommunities.org/id/metropolitan-district-council/wolverhampton","Amazon UK Marketplace","74.97","The Clangers & TV Puppets","5942","Materials","08/12/2017"
"Wolverhampton City Council","http://opendatacommunities.org/id/metropolitan-district-council/wolverhampton","CARPETRIGHT PLC","291.12","Civic & Wulfrun In-house Promotions","5713","Equipment - Purchase","07/12/2017"
"Wolverhampton City Council","http://opendatacommunities.org/id/metropolitan-district-council/wolverhampton","Amazon UK Marketplace","185.40","Headstart - Learning Technologies Team","5942","Computing - Purchase of Hardware","07/12/2017"
"Wolverhampton City Council","http://opendatacommunities.org/id/metropolitan-district-council/wolverhampton","PRODUCT SUPPORT AG","6.66","Headstart - Young People Engagement","5968","Computing - Maint Agreements","07/12/2017"
"Wolverhampton City Council","http://opendatacommunities.org/id/metropolitan-district-council/wolverhampton","PRODUCT SUPPORT AG","6.66","Headstart - Young People Engagement","5968","Computing - Maint Agreements","07/12/2017"
"Wolverhampton City Council","http://opendatacommunities.org/id/metropolitan-district-council/wolverhampton","SPECSAVERSEVOUGB-","974.48","HR Advice","8043","Services - Professional Fees","07/12/2017"
"Wolverhampton City Council","http://opendatacommunities.org/id/metropolitan-district-council/wolverhampton","LOVE2SHOP.CO.UK","20.00","Work Box","8641","Educ Trips, Holidays, Outings, Activity","07/12/2017"
"Wolverhampton City Council","http://opendatacommunities.org/id/metropolitan-district-council/wolverhampton","REGISTRARS OFFICE","25.00","Head of Service - CINCP","8299","Services - Professional Fees","07/12/2017"
"Wolverhampton City Council","http://opendatacommunities.org/id/metropolitan-district-council/wolverhampton","Amazon EU","7.90","Legal Services","5969","Equipment - Purchase","07/12/2017"
"Wolverhampton City Council","http://opendatacommunities.org/id/metropolitan-district-council/wolverhampton","ASDA SUPERSTORE","200.00","CIN/CP Social Work Unit - Area 3","5411","No Recourse to Public Funds","07/12/2017"
"Wolverhampton City Council","http://opendatacommunities.org/id/metropolitan-district-council/wolverhampton","ASDA SUPERSTORE","20.00","EIP Locality 5","5411","Equipment - Purchase","07/12/2017"
"Wolverhampton City Council","http://opendatacommunities.org/id/metropolitan-district-council/wolverhampton","WM MORRISON 024","21.32","EIP Locality 1","5411","Provisions (Not for resale)","07/12/2017"
"Wolverhampton City Council","http://opendatacommunities.org/id/metropolitan-district-council/wolverhampton","POUNDLAND","10.92","EIP Locality 1","5310","Equipment - Purchase","07/12/2017"
"Wolverhampton City Council","http://opendatacommunities.org/id/metropolitan-district-council/wolverhampton","THE WORKS","1.67","Housing Regeneration - Strategy & Dev","5310","Stationery","07/12/2017"
"Wolverhampton City Council","http://opendatacommunities.org/id/metropolitan-district-council/wolverhampton","HOME BARGAINS","2.34","EIP Locality 1","5251","Grant Payments","07/12/2017"
"Wolverhampton City Council","http://opendatacommunities.org/id/metropolitan-district-council/wolverhampton","000002200500000","20.00","EIP Locality 1","6011","Grant Payments","07/12/2017"
"Wolverhampton City Council","http://opendatacommunities.org/id/metropolitan-district-council/wolverhampton","THE RANGE","5.82","Craftplay","5311","Materials","07/12/2017"
"Wolverhampton City Council","http://opendatacommunities.org/id/metropolitan-district-council/wolverhampton","NEW LOOK 1817","75.84","IMPACT","5621","Equipment - Purchase","07/12/2017"
"Wolverhampton City Council","http://opendatacommunities.org/id/metropolitan-district-council/wolverhampton","WICKES","41.65","Specialist Support Service - North","5211","Equipment - R & M","07/12/2017"
"Wolverhampton City Council","http://opendatacommunities.org/id/metropolitan-district-council/wolverhampton","POST OFFICE COUNTER","242.00","LAC Team","9402","Stationery","07/12/2017"
"Wolverhampton City Council","http://opendatacommunities.org/id/metropolitan-district-council/wolverhampton","FIREPROTECT","15.96","Central Costs","5732","Equipment - Purchase","07/12/2017"
"Wolverhampton City Council","http://opendatacommunities.org/id/metropolitan-district-council/wolverhampton","CO-OPERATIVE TRAVE","723.88","Leonardo Da Vinci Project","6051","Subsistence","07/12/2017"
"Wolverhampton City Council","http://opendatacommunities.org/id/metropolitan-district-council/wolverhampton","Trainline","125.46","CIN/CP Social Work Unit - Area 4","4112","Section 17","07/12/2017"
"Wolverhampton City Council","http://opendatacommunities.org/id/metropolitan-district-council/wolverhampton","ICELAND","17.55","Mayoral Expenses","5411","Hospitality","07/12/2017"
"Wolverhampton City Council","http://opendatacommunities.org/id/metropolitan-district-council/wolverhampton","Virgin Trains","27.00","Planning","4112","Public Transport","07/12/2017"
"Wolverhampton City Council","http://opendatacommunities.org/id/metropolitan-district-council/wolverhampton","THE NEW BRIDGE GUEST H","200.00","CIN/CP Social Work Unit - Area 3","7011","Accommodation Costs","07/12/2017"
"Wolverhampton City Council","http://opendatacommunities.org/id/metropolitan-district-council/wolverhampton","THE NEW BRIDGE GUEST H","500.00","CIN/CP Social Work Unit - Area 3","7011","Accommodation Costs","07/12/2017"
"Wolverhampton City Council","http://opendatacommunities.org/id/metropolitan-district-council/wolverhampton","AMAZON EU AMAZON.CO.UK","19.63","Northicote Farm","5999","Equipment - Purchase","07/12/2017"
"Wolverhampton City Council","http://opendatacommunities.org/id/metropolitan-district-council/wolverhampton","TRAINLINE","-42.10","CIN/CP Social Work Unit - Area 4","4112","Public Transport","06/12/2017"
"Wolverhampton City Council","http://opendatacommunities.org/id/metropolitan-district-council/wolverhampton","Amazon UK Marketplace","4.99","Street Lighting Maintenance","5942","Books","06/12/2017"
"Wolverhampton City Council","http://opendatacommunities.org/id/metropolitan-district-council/wolverhampton","GRO HM PASSPORT OFFICE","4.62","LAC Transitions Team","9399","Client Allowances","06/12/2017"
"Wolverhampton City Council","http://opendatacommunities.org/id/metropolitan-district-council/wolverhampton","WEST COAST TRAINS","84.17","Adult Services - East","4112","Public Transport","06/12/2017"
"Wolverhampton City Council","http://opendatacommunities.org/id/metropolitan-district-council/wolverhampton","Amazon UK Marketplace","9.16","Licensing - General","5942","Equipment - Purchase","06/12/2017"
"Wolverhampton City Council","http://opendatacommunities.org/id/metropolitan-district-council/wolverhampton","WM MORRISONS","9.27","B-Safe","5411","Provisions (Not for resale)","06/12/2017"
"Wolverhampton City Council","http://opendatacommunities.org/id/metropolitan-district-council/wolverhampton","SAINSBURYS 2040","8.33","Mayoral Expenses","5411","Hospitality","06/12/2017"
"Wolverhampton City Council","http://opendatacommunities.org/id/metropolitan-district-council/wolverhampton","Amazon EU","16.40","SEN Sensory Inclusion","5969","Equipment - Purchase","06/12/2017"
"Wolverhampton City Council","http://opendatacommunities.org/id/metropolitan-district-council/wolverhampton","Amazon UK Marketplace","18.72","SEN Sensory Inclusion","5942","Equipment - Purchase","06/12/2017"
"Wolverhampton City Council","http://opendatacommunities.org/id/metropolitan-district-council/wolverhampton","Amazon UK Marketplace","4.67","SEN Sensory Inclusion","5942","Equipment - Purchase","06/12/2017"
"Wolverhampton City Council","http://opendatacommunities.org/id/metropolitan-district-council/wolverhampton","TESCO STORES 5194","36.82","Towers Outdoor Education Centre","5411","Provisions (Not for resale)","06/12/2017"
"Wolverhampton City Council","http://opendatacommunities.org/id/metropolitan-district-council/wolverhampton","Trainline","99.25","Youth Offending Team","4112","Public Transport","06/12/2017"
"Wolverhampton City Council","http://opendatacommunities.org/id/metropolitan-district-council/wolverhampton","Trainline","47.43","Legal Services","4112","Public Transport","06/12/2017"
"Wolverhampton City Council","http://opendatacommunities.org/id/metropolitan-district-council/wolverhampton","CROWN HOTEL (STONE) LT","280.00","CIN/CP Social Work Unit - Area 3","7011","Section 17","06/12/2017"
"Wolverhampton City Council","http://opendatacommunities.org/id/metropolitan-district-council/wolverhampton","W M MORRISONS.COM","88.57","Discretionary Fund","5411","Materials","06/12/2017"
"Wolverhampton City Council","http://opendatacommunities.org/id/metropolitan-district-council/wolverhampton","Virgin Trains","216.00","Strategic Director People","4112","Public Transport","06/12/2017"
"Wolverhampton City Council","http://opendatacommunities.org/id/metropolitan-district-council/wolverhampton","ARGOS RETAIL GROUP","19.99","EIP Locality 5","5310","Equipment - Purchase","06/12/2017"
"Wolverhampton City Council","http://opendatacommunities.org/id/metropolitan-district-council/wolverhampton","Amazon UK Marketplace","28.98","Foundation Studies","5942","Equipment - Purchase","06/12/2017"
"Wolverhampton City Council","http://opendatacommunities.org/id/metropolitan-district-council/wolverhampton","THE QUALITY HOTEL WOLV","71.92","MASH","7011","Section 17","06/12/2017"
"Wolverhampton City Council","http://opendatacommunities.org/id/metropolitan-district-council/wolverhampton","JAMES LISTER & SONS LT","41.84","Culwell Street Depot","5085","R&M - Departmental planned (external)","06/12/2017"
"Wolverhampton City Council","http://opendatacommunities.org/id/metropolitan-district-council/wolverhampton","Amazon EU","21.45","SEN Sensory Inclusion","5969","Equipment - Purchase","06/12/2017"
"Wolverhampton City Council","http://opendatacommunities.org/id/metropolitan-district-council/wolverhampton","Cross Country Trains","7.60","Head of Strategic Commissioning � People","4112","Public Transport","06/12/2017"
"Wolverhampton City Council","http://opendatacommunities.org/id/metropolitan-district-council/wolverhampton","HOME BARGAINS WOLVERHA","34.37","EIP Locality 3","5251","Educ Trips, Holidays, Outings, Activity","06/12/2017"
"Wolverhampton City Council","http://opendatacommunities.org/id/metropolitan-district-council/wolverhampton","B&M RETAIL","11.64","EIP Locality 3","5310","Educ Trips, Holidays, Outings, Activity","06/12/2017"
"Wolverhampton City Council","http://opendatacommunities.org/id/metropolitan-district-council/wolverhampton","POUNDLAND LTD 1463","5.83","Central Costs","5310","Stationery","06/12/2017"
"Wolverhampton City Council","http://opendatacommunities.org/id/metropolitan-district-council/wolverhampton","WWW.ARGOS.CO.UK","169.99","CIN/CP Social Work Unit - Area 5","5310","Section 17","06/12/2017"
"Wolverhampton City Council","http://opendatacommunities.org/id/metropolitan-district-council/wolverhampton","HOME BARGAINS","26.72","Civic Centre Catering","5251","Equipment - Purchase","06/12/2017"
"Wolverhampton City Council","http://opendatacommunities.org/id/metropolitan-district-council/wolverhampton","WESTACRES","55.00","SEN Early Years Team","5812","Educ Trips, Holidays, Outings, Activity","06/12/2017"
"Wolverhampton City Council","http://opendatacommunities.org/id/metropolitan-district-council/wolverhampton","J VAN VLIET BIRMINGHAM","55.45","Discretionary Fund","5399","Materials","06/12/2017"
"Wolverhampton City Council","http://opendatacommunities.org/id/metropolitan-district-council/wolverhampton","J VAN VLIET BIRMINGHAM","77.25","Creative Studies Delivery Area","5399","Materials for resale","06/12/2017"
"Wolverhampton City Council","http://opendatacommunities.org/id/metropolitan-district-council/wolverhampton","ROAD KING","35.00","Emergency Duty Team","5812","Educ Trips, Holidays, Outings, Activity","06/12/2017"
"Wolverhampton City Council","http://opendatacommunities.org/id/metropolitan-district-council/wolverhampton","HUGHES","488.00","LAC Transitions Team","5732","Client Allowances","05/12/2017"
"Wolverhampton City Council","http://opendatacommunities.org/id/metropolitan-district-council/wolverhampton","ROYAL CARPETS","100.00","LAC Transitions Team","5713","Client Allowances","05/12/2017"
"Wolverhampton City Council","http://opendatacommunities.org/id/metropolitan-district-council/wolverhampton","ARGOS WOLVERHAMPTO","64.99","LAC Transitions Team","5310","Client Allowances","05/12/2017"
"Wolverhampton City Council","http://opendatacommunities.org/id/metropolitan-district-council/wolverhampton","ARGOS LTD","39.99","LAC Transitions Team","5310","Client Allowances","05/12/2017"
"Wolverhampton City Council","http://opendatacommunities.org/id/metropolitan-district-council/wolverhampton","Virgin Trains","118.75","LAC Transitions Team","4112","Client Allowances","05/12/2017"
"Wolverhampton City Council","http://opendatacommunities.org/id/metropolitan-district-council/wolverhampton","HN NUTTALL LTD","345.94","Towers Outdoor Education Centre","5085","Provisions (Not for resale)","05/12/2017"
"Wolverhampton City Council","http://opendatacommunities.org/id/metropolitan-district-council/wolverhampton","HARLECH FOODSERVICE LT","157.83","Towers Outdoor Education Centre","5422","Provisions (Not for resale)","05/12/2017"
"Wolverhampton City Council","http://opendatacommunities.org/id/metropolitan-district-council/wolverhampton","C L JONES LIMITED","1.68","Towers Outdoor Education Centre","5211","Fixtures and Fittings - Purchases","05/12/2017"
"Wolverhampton City Council","http://opendatacommunities.org/id/metropolitan-district-council/wolverhampton","CURRYS ONLINE","149.97","Headstart - Learning Technologies Team","5732","Equipment - Purchase","05/12/2017"
"Wolverhampton City Council","http://opendatacommunities.org/id/metropolitan-district-council/wolverhampton","VDU01 HOTEL","195.00","IMPACT","7011","Services - Supplies & Services to users","05/12/2017"
"Wolverhampton City Council","http://opendatacommunities.org/id/metropolitan-district-council/wolverhampton","LOVE2SHOP.CO.UK","80.00","Work Box","8641","Educ Trips, Holidays, Outings, Activity","05/12/2017"
"Wolverhampton City Council","http://opendatacommunities.org/id/metropolitan-district-council/wolverhampton","SAINSBURYS PFS (1340)","1.67","Mayoral Expenses","5541","Vehicle Maintenance - Repairs","05/12/2017"
"Wolverhampton City Council","http://opendatacommunities.org/id/metropolitan-district-council/wolverhampton","Trainline","17.09","LAC Education Team (LACE)","4112","Public Transport","05/12/2017"
"Wolverhampton City Council","http://opendatacommunities.org/id/metropolitan-district-council/wolverhampton","BEATSABAR MUSIC PROJEC","30.00","Youth Offending Team","5733","Equipment - Purchase","05/12/2017"
"Wolverhampton City Council","http://opendatacommunities.org/id/metropolitan-district-council/wolverhampton","Trainline","40.29","Youth Offending Team","4112","Public Transport","05/12/2017"
"Wolverhampton City Council","http://opendatacommunities.org/id/metropolitan-district-council/wolverhampton","Trainline","51.25","Youth Offending Team","4112","Public Transport","05/12/2017"
"Wolverhampton City Council","http://opendatacommunities.org/id/metropolitan-district-council/wolverhampton","WWW.NISBETS.COM","143.97","LAC Transitions Team","5964","Client Allowances","05/12/2017"
"Wolverhampton City Council","http://opendatacommunities.org/id/metropolitan-district-council/wolverhampton","Trainline","109.45","LAC Transitions Team","4112","Public Transport","05/12/2017"
"Wolverhampton City Council","http://opendatacommunities.org/id/metropolitan-district-council/wolverhampton","THE QUEEN VICTORIA HOT","54.00","MASH","7011","No Recourse to Public Funds","05/12/2017"
"Wolverhampton City Council","http://opendatacommunities.org/id/metropolitan-district-council/wolverhampton","BOOKWHEN","9.00","Craftplay","7372","Computing - Purchase of Software","05/12/2017"
"Wolverhampton City Council","http://opendatacommunities.org/id/metropolitan-district-council/wolverhampton","THE POST OFFICE","19.50","EIP Locality 3","9402","Comms - Postage","05/12/2017"
"Wolverhampton City Council","http://opendatacommunities.org/id/metropolitan-district-council/wolverhampton","ASDA HOME SHOPPING","73.07","Ernest Bold Court","5411","Provisions (Not for resale)","05/12/2017"
"Wolverhampton City Council","http://opendatacommunities.org/id/metropolitan-district-council/wolverhampton","ASDA SUPERSTORE","18.00","Mayoral Expenses","5411","Hospitality","05/12/2017"
"Wolverhampton City Council","http://opendatacommunities.org/id/metropolitan-district-council/wolverhampton","SAINSBURYS SACAT 2040","21.50","Civic Centre Catering","5411","Provisions (Not for resale)","05/12/2017"
"Wolverhampton City Council","http://opendatacommunities.org/id/metropolitan-district-council/wolverhampton","Trainline","69.26","DA Care Purchasing (Spot Placements)","4112","Public Transport","05/12/2017"
"Wolverhampton City Council","http://opendatacommunities.org/id/metropolitan-district-council/wolverhampton","MARKS&SPENCER PLC SACA","48.75","Mayoral Expenses","5411","Clothing / Uniforms","05/12/2017"
"Wolverhampton City Council","http://opendatacommunities.org/id/metropolitan-district-council/wolverhampton","CHILLINGTON SELF STORA","-66.00","CIN/CP Social Work Unit - Area 1","4214","Section 17","05/12/2017"
"Wolverhampton City Council","http://opendatacommunities.org/id/metropolitan-district-council/wolverhampton","REGISTRARS OFFICE","20.00","Adoption and Residence Team & Allowances","8299","Services - Fees and Charges","05/12/2017"
"Wolverhampton City Council","http://opendatacommunities.org/id/metropolitan-district-council/wolverhampton","REGISTRARS OFFICE","20.00","Adoption and Residence Team & Allowances","8299","Services - Fees and Charges","05/12/2017"
"Wolverhampton City Council","http://opendatacommunities.org/id/metropolitan-district-council/wolverhampton","NCE COMPUTER GROUP","137.50","Strategic ICTS (ICT Serv Budget)","7372","Computing - Purchase of Software","05/12/2017"
"Wolverhampton City Council","http://opendatacommunities.org/id/metropolitan-district-council/wolverhampton","Virgin Trains","27.20","Planning","4112","Public Transport","05/12/2017"
"Wolverhampton City Council","http://opendatacommunities.org/id/metropolitan-district-council/wolverhampton","Virgin Trains","114.00","Information Governance Team","4112","Public Transport","05/12/2017"
"Wolverhampton City Council","http://opendatacommunities.org/id/metropolitan-district-council/wolverhampton","Amazon Prime","7.99","Licensing - General","5968","Subscriptions","05/12/2017"
"Wolverhampton City Council","http://opendatacommunities.org/id/metropolitan-district-council/wolverhampton","WWW.GOV.UK","10.00","Revenues","8999","Services - Professional Fees","04/12/2017"
"Wolverhampton City Council","http://opendatacommunities.org/id/metropolitan-district-council/wolverhampton","Virgin Trains","57.00","LAC Team","4112","Public Transport","04/12/2017"
"Wolverhampton City Council","http://opendatacommunities.org/id/metropolitan-district-council/wolverhampton","AMAZON UK RETAIL AMAZO","40.94","SEN Sensory Inclusion","5999","Equipment - Purchase","04/12/2017"
"Wolverhampton City Council","http://opendatacommunities.org/id/metropolitan-district-council/wolverhampton","AMAZON.CO.UK","32.28","SEN Sensory Inclusion","5942","Equipment - Purchase","04/12/2017"
"Wolverhampton City Council","http://opendatacommunities.org/id/metropolitan-district-council/wolverhampton","AMAZON.CO.UK","10.94","Global Budgets","5942","Books","04/12/2017"
"Wolverhampton City Council","http://opendatacommunities.org/id/metropolitan-district-council/wolverhampton","WILKO.COM","72.71","LAC Transitions Team","5722","Client Allowances","04/12/2017"
"Wolverhampton City Council","http://opendatacommunities.org/id/metropolitan-district-council/wolverhampton","ARGOS RETAIL GROUP","119.66","LAC Transitions Team","5310","Client Allowances","04/12/2017"
"Wolverhampton City Council","http://opendatacommunities.org/id/metropolitan-district-council/wolverhampton","BRITANNIA","139.58","Emergency Duty Team","7011","Services - Supplies & Services to users","04/12/2017"
"Wolverhampton City Council","http://opendatacommunities.org/id/metropolitan-district-council/wolverhampton","GOOGLE  SVCSAPPS_wolve","9.90","Civic Halls Non Direct Management A/C","5968","Subscriptions","04/12/2017"
"Wolverhampton City Council","http://opendatacommunities.org/id/metropolitan-district-council/wolverhampton","Virgin Trains","169.30","Adoption and Residence Team & Allowances","4112","Public Transport","04/12/2017"
"Wolverhampton City Council","http://opendatacommunities.org/id/metropolitan-district-council/wolverhampton","ASDA SUPERSTORE","12.00","Education And Access","5411","Provisions (Not for resale)","04/12/2017"
"Wolverhampton City Council","http://opendatacommunities.org/id/metropolitan-district-council/wolverhampton","Virgin Trains","38.00","Quality Assurance & Policies","4112","Public Transport","04/12/2017"
"Wolverhampton City Council","http://opendatacommunities.org/id/metropolitan-district-council/wolverhampton","AMAZON.CO.UK","66.36","Communications & Marketing - General","5942","Books","04/12/2017"
"Wolverhampton City Council","http://opendatacommunities.org/id/metropolitan-district-council/wolverhampton","AMAZON UK RETAIL AMAZO","14.48","Headstart Phase 3","5999","Books","04/12/2017"
"Wolverhampton City Council","http://opendatacommunities.org/id/metropolitan-district-council/wolverhampton","AMAZON UK RETAIL AMAZO","17.21","Headstart Phase 3","5999","Books","04/12/2017"
"Wolverhampton City Council","http://opendatacommunities.org/id/metropolitan-district-council/wolverhampton","AMAZON.CO.UK","7.05","Headstart Phase 3","5942","Books","04/12/2017"
"Wolverhampton City Council","http://opendatacommunities.org/id/metropolitan-district-council/wolverhampton","Amazon EU","9.98","Archives","5969","Books","04/12/2017"
"Wolverhampton City Council","http://opendatacommunities.org/id/metropolitan-district-council/wolverhampton","THE WORKS","12.00","Archives","5310","Books","04/12/2017"
"Wolverhampton City Council","http://opendatacommunities.org/id/metropolitan-district-council/wolverhampton","B&M RETAIL","24.99","Civic Centre","5310","Equipment - Purchase","04/12/2017"
"Wolverhampton City Council","http://opendatacommunities.org/id/metropolitan-district-council/wolverhampton","B&M RETAIL","31.54","Civic Centre","5310","Equipment - Purchase","04/12/2017"
"Wolverhampton City Council","http://opendatacommunities.org/id/metropolitan-district-council/wolverhampton","B&M RETAIL LTD","54.34","Civic Centre","5310","Equipment - Purchase","04/12/2017"
"Wolverhampton City Council","http://opendatacommunities.org/id/metropolitan-district-council/wolverhampton","LEAR PRINT","3.00","EIP Locality 1","2741","Stationery","04/12/2017"
"Wolverhampton City Council","http://opendatacommunities.org/id/metropolitan-district-council/wolverhampton","WWW.GOV.UK","10.00","Revenues","8999","Services - Professional Fees","04/12/2017"
"Wolverhampton City Council","http://opendatacommunities.org/id/metropolitan-district-council/wolverhampton","Amazon UK Marketplace","62.50","EIP Locality 2","5942","Equipment - Purchase","04/12/2017"
"Wolverhampton City Council","http://opendatacommunities.org/id/metropolitan-district-council/wolverhampton","SAINSBURYS","20.00","EIP Locality 3","6011","Grant Payments","04/12/2017"
"Wolverhampton City Council","http://opendatacommunities.org/id/metropolitan-district-council/wolverhampton","WICKES","18.30","Community Enablement","5211","Equipment - R & M","04/12/2017"
"Wolverhampton City Council","http://opendatacommunities.org/id/metropolitan-district-council/wolverhampton","BEATTIES","28.05","Jane & Louise Wilson","5311","Equipment - Purchase","04/12/2017"
"Wolverhampton City Council","http://opendatacommunities.org/id/metropolitan-district-council/wolverhampton","ASDA HOME SHOPPING","72.26","Ernest Bold Court","5411","Provisions (Not for resale)","04/12/2017"
"Wolverhampton City Council","http://opendatacommunities.org/id/metropolitan-district-council/wolverhampton","ASDA HOME SHOPPING","0.46","Ernest Bold Court","5411","Provisions (Not for resale)","04/12/2017"
"Wolverhampton City Council","http://opendatacommunities.org/id/metropolitan-district-council/wolverhampton","WM MORRISON 024","18.68","Ernest Bold Court","5411","Provisions (Not for resale)","04/12/2017"
"Wolverhampton City Council","http://opendatacommunities.org/id/metropolitan-district-council/wolverhampton","POUNDLAND LTD 1463","3.37","Environmental Health - Pub Prot - Gen","5310","Equipment - Purchase","04/12/2017"
"Wolverhampton City Council","http://opendatacommunities.org/id/metropolitan-district-council/wolverhampton","BOOTS","6.45","CIN/CP Social Work Unit - Area 5","5912","No Recourse to Public Funds","04/12/2017"
"Wolverhampton City Council","http://opendatacommunities.org/id/metropolitan-district-council/wolverhampton","AMAZON UK RETAIL AMAZO","31.40","Global Budgets","5999","Books","04/12/2017"
"Wolverhampton City Council","http://opendatacommunities.org/id/metropolitan-district-council/wolverhampton","AMAZON UK RETAIL AMAZO","15.53","Global Budgets","5999","Books","04/12/2017"
"Wolverhampton City Council","http://opendatacommunities.org/id/metropolitan-district-council/wolverhampton","AMAZON.CO.UK","11.12","Global Budgets","5942","Books","04/12/2017"
"Wolverhampton City Council","http://opendatacommunities.org/id/metropolitan-district-council/wolverhampton","WILKO RETAIL LIMIT","5.87","Global Budgets","5722","Equipment - Purchase","04/12/2017"
"Wolverhampton City Council","http://opendatacommunities.org/id/metropolitan-district-council/wolverhampton","AMAZON.CO.UK","283.36","Headstart Phase 3","5942","Equipment - Purchase","04/12/2017"
"Wolverhampton City Council","http://opendatacommunities.org/id/metropolitan-district-council/wolverhampton","Trainline","92.62","Service Director City Environment","4112","Public Transport","04/12/2017"
"Wolverhampton City Council","http://opendatacommunities.org/id/metropolitan-district-council/wolverhampton","ASDA SUPERSTORE","16.96","CIN/CP Social Work Unit - Area 4","5411","No Recourse to Public Funds","04/12/2017"
"Wolverhampton City Council","http://opendatacommunities.org/id/metropolitan-district-council/wolverhampton","ASDA SUPERSTORE","83.33","CIN/CP Social Work Unit - Area 4","5411","Section 17","04/12/2017"
"Wolverhampton City Council","http://opendatacommunities.org/id/metropolitan-district-council/wolverhampton","ASDA SUPERSTORE","83.33","CIN/CP Social Work Unit - Area 4","5411","Section 17","04/12/2017"
"Wolverhampton City Council","http://opendatacommunities.org/id/metropolitan-district-council/wolverhampton","AMAZON.CO.UK","5.38","Civic Centre","5942","Books","04/12/2017"
"Wolverhampton City Council","http://opendatacommunities.org/id/metropolitan-district-council/wolverhampton","AMAZON.CO.UK","11.37","Welfare Rights","5942","Stationery","04/12/2017"
"Wolverhampton City Council","http://opendatacommunities.org/id/metropolitan-district-council/wolverhampton","STRAND PALACE HOTE","189.17","Director of Governance","7011","Accommodation Costs","04/12/2017"
"Wolverhampton City Council","http://opendatacommunities.org/id/metropolitan-district-council/wolverhampton","STRAND PALACE HOTE","261.67","Director of Governance","7011","Accommodation Costs","04/12/2017"
"Wolverhampton City Council","http://opendatacommunities.org/id/metropolitan-district-council/wolverhampton","STRAND PALACE HOTE","122.51","Director of Governance","7011","Accommodation Costs","04/12/2017"
"Wolverhampton City Council","http://opendatacommunities.org/id/metropolitan-district-council/wolverhampton","STRAND PALACE HOTE","122.51","Director of Governance","7011","Accommodation Costs","04/12/2017"
"Wolverhampton City Council","http://opendatacommunities.org/id/metropolitan-district-council/wolverhampton","STRAND PALACE HOTE","122.51","Director of Governance","7011","Accommodation Costs","04/12/2017"
"Wolverhampton City Council","http://opendatacommunities.org/id/metropolitan-district-council/wolverhampton","ASDA SUPERSTORE","8.16","Mayoral Expenses","5411","Hospitality","04/12/2017"
"Wolverhampton City Council","http://opendatacommunities.org/id/metropolitan-district-council/wolverhampton","Virgin Trains","147.60","LAC Team","4112","Client Transport","04/12/2017"
"Wolverhampton City Council","http://opendatacommunities.org/id/metropolitan-district-council/wolverhampton","A2B RADIO CARS","47.40","MASH","4121","Section 17","04/12/2017"
"Wolverhampton City Council","http://opendatacommunities.org/id/metropolitan-district-council/wolverhampton","AMAZON.CO.UK","41.62","Headstart Phase 3","5942","Equipment - Purchase","04/12/2017"
"Wolverhampton City Council","http://opendatacommunities.org/id/metropolitan-district-council/wolverhampton","AMAZON.CO.UK","99.60","Headstart Hubs","5942","Stationery","04/12/2017"
"Wolverhampton City Council","http://opendatacommunities.org/id/metropolitan-district-council/wolverhampton","AMAZON.CO.UK","16.23","Headstart Phase 3","5942","Furniture","04/12/2017"
"Wolverhampton City Council","http://opendatacommunities.org/id/metropolitan-district-council/wolverhampton","GREGGS","6.55","Headstart Phase 3","5812","Subsistence","04/12/2017"
"Wolverhampton City Council","http://opendatacommunities.org/id/metropolitan-district-council/wolverhampton","AMAZON.CO.UK","11.37","Headstart Phase 3","5942","Equipment - Purchase","04/12/2017"
"Wolverhampton City Council","http://opendatacommunities.org/id/metropolitan-district-council/wolverhampton","AMAZON UK RETAIL AMAZO","15.17","Headstart Phase 3","5999","Books","04/12/2017"
"Wolverhampton City Council","http://opendatacommunities.org/id/metropolitan-district-council/wolverhampton","AMAZON UK RETAIL AMAZO","35.22","Headstart Phase 3","5999","Books","04/12/2017"
"Wolverhampton City Council","http://opendatacommunities.org/id/metropolitan-district-council/wolverhampton","HOME BARGAINS WOLVERHA","18.08","Aldersley Leisure Village","5251","Equipment - Purchase","04/12/2017"
"Wolverhampton City Council","http://opendatacommunities.org/id/metropolitan-district-council/wolverhampton","WM MORRISONS","35.00","Aldersley Leisure Village","5411","Equipment - Purchase","04/12/2017"
"Wolverhampton City Council","http://opendatacommunities.org/id/metropolitan-district-council/wolverhampton","Amazon UK Marketplace","18.32","Central Baths","5942","Equipment - Purchase","04/12/2017"
"Wolverhampton City Council","http://opendatacommunities.org/id/metropolitan-district-council/wolverhampton","Amazon UK Marketplace","22.77","Central Baths","5942","Equipment - Purchase","04/12/2017"
"Wolverhampton City Council","http://opendatacommunities.org/id/metropolitan-district-council/wolverhampton","WM MORRISON 024","6.00","Ernest Bold Court","5411","Provisions (Not for resale)","04/12/2017"
"Wolverhampton City Council","http://opendatacommunities.org/id/metropolitan-district-council/wolverhampton","WILKO.COM","47.00","EIP Locality 8","5722","Grant Payments","04/12/2017"
"Wolverhampton City Council","http://opendatacommunities.org/id/metropolitan-district-council/wolverhampton","123 REG R/T","103.92","City Direct","5968","Subscriptions","04/12/2017"
"Wolverhampton City Council","http://opendatacommunities.org/id/metropolitan-district-council/wolverhampton","WESTON SAWMILLS","87.50","Cemeteries","5261","Equipment - Purchase","04/12/2017"
"Wolverhampton City Council","http://opendatacommunities.org/id/metropolitan-district-council/wolverhampton","Virgin Trains","223.00","Adoption and Residence Team & Allowances","4112","Public Transport","04/12/2017"
"Wolverhampton City Council","http://opendatacommunities.org/id/metropolitan-district-council/wolverhampton","WWW.FFX.CO.UK","294.17","Technician","5211","Equipment - Purchase","04/12/2017"
"Wolverhampton City Council","http://opendatacommunities.org/id/metropolitan-district-council/wolverhampton","E H SMITH - SHIRLEY (3","179.97","Touring Costs","5211","Materials","04/12/2017"
"Wolverhampton City Council","http://opendatacommunities.org/id/metropolitan-district-council/wolverhampton","AMAZON.CO.UK","9.98","Parks - Management and Admin","5942","Equipment - Purchase","04/12/2017"
"Wolverhampton City Council","http://opendatacommunities.org/id/metropolitan-district-council/wolverhampton","TFM FARM & COUNTRY SUP","122.95","Northicote Farm","5399","Equipment - Purchase","04/12/2017"
"Wolverhampton City Council","http://opendatacommunities.org/id/metropolitan-district-council/wolverhampton","AMAZON.CO.UK","23.95","Adoption and Residence Team & Allowances","5942","Equipment - Health and Safety","04/12/2017"
"Wolverhampton City Council","http://opendatacommunities.org/id/metropolitan-district-council/wolverhampton","PATSHULL PARK HOTEL","297.50","Adoption and Residence Team & Allowances","7011","Accommodation Costs","04/12/2017"
"Wolverhampton City Council","http://opendatacommunities.org/id/metropolitan-district-council/wolverhampton","WICKES","108.30","EIP Locality 5","5211","Equipment - Purchase","04/12/2017"
"Wolverhampton City Council","http://opendatacommunities.org/id/metropolitan-district-council/wolverhampton","Amazon UK Marketplace","67.00","EIP Locality 7","5942","Grant Payments","04/12/2017"
"Wolverhampton City Council","http://opendatacommunities.org/id/metropolitan-district-council/wolverhampton","AMAZON.CO.UK","41.70","Planning","5942","Books","04/12/2017"
"Wolverhampton City Council","http://opendatacommunities.org/id/metropolitan-district-council/wolverhampton","CROWN PROPERTY SERVICE","120.00","CIN/CP Social Work Unit - Area 3","7011","Accommodation Costs","04/12/2017"
"Wolverhampton City Council","http://opendatacommunities.org/id/metropolitan-district-council/wolverhampton","THE NEW BRIDGE GUEST H","352.00","CIN/CP Social Work Unit - Area 3","7011","Accommodation Costs","04/12/2017"
"Wolverhampton City Council","http://opendatacommunities.org/id/metropolitan-district-council/wolverhampton","Virgin Trains","206.00","Adoption and Residence Team & Allowances","4112","Public Transport","04/12/2017"
"Wolverhampton City Council","http://opendatacommunities.org/id/metropolitan-district-council/wolverhampton","Amazon Prime","7.99","LAC Transitions Team","5968","Subscriptions","04/12/2017"
"Wolverhampton City Council","http://opendatacommunities.org/id/metropolitan-district-council/wolverhampton","NATIONALITY DIRECTORAT","973.00","CIN/CP Social Work Unit - Area 3","9399","No Recourse to Public Funds","04/12/2017"
"Wolverhampton City Council","http://opendatacommunities.org/id/metropolitan-district-council/wolverhampton","Amazon UK Marketplace","21.79","Intensive Family Support Team","5942","Books","04/12/2017"
"Wolverhampton City Council","http://opendatacommunities.org/id/metropolitan-district-council/wolverhampton","AMAZON.CO.UK","26.99","Upper Pendeford Farm Childrens Home","5942","Books","04/12/2017"
"Wolverhampton City Council","http://opendatacommunities.org/id/metropolitan-district-council/wolverhampton","Virgintrains.co.uk","-73.80","LAC Team","4112","Public Transport","04/12/2017"
"Wolverhampton City Council","http://opendatacommunities.org/id/metropolitan-district-council/wolverhampton","PC WORLD ONLINE","129.00","LAC Transitions Team","5732","Equipment - Purchase","01/12/2017"
"Wolverhampton City Council","http://opendatacommunities.org/id/metropolitan-district-council/wolverhampton","FACEBK VGSGCDNG52","117.49","Audience Development","7311","Marketing \ Non-staff advertising","01/12/2017"
"Wolverhampton City Council","http://opendatacommunities.org/id/metropolitan-district-council/wolverhampton","FACEBK TGSGCDNG52","40.37","Audience Development","7311","Marketing \ Non-staff advertising","01/12/2017"
"Wolverhampton City Council","http://opendatacommunities.org/id/metropolitan-district-council/wolverhampton","YMLP.COM","105.00","Audience Development","7372","Computing - Purchase of Software","01/12/2017"
"Wolverhampton City Council","http://opendatacommunities.org/id/metropolitan-district-council/wolverhampton","FACEBK JRKMXCE982","22.35","Audience Development","7311","Marketing \ Non-staff advertising","01/12/2017"
"Wolverhampton City Council","http://opendatacommunities.org/id/metropolitan-district-council/wolverhampton","FACEBK HRKMXCE982","15.74","Audience Development","7311","Marketing \ Non-staff advertising","01/12/2017"
"Wolverhampton City Council","http://opendatacommunities.org/id/metropolitan-district-council/wolverhampton","ITUNES.COM/BILL","2.49","Headstart - Learning Technologies Team","5735","Computing - Purchase of Software","01/12/2017"
"Wolverhampton City Council","http://opendatacommunities.org/id/metropolitan-district-council/wolverhampton","ITUNES.COM/BILL","2.99","Headstart - Learning Technologies Team","5735","Computing - Purchase of Software","01/12/2017"
"Wolverhampton City Council","http://opendatacommunities.org/id/metropolitan-district-council/wolverhampton","FACEBK XU2N3FW9R2","25.96","Communications & Marketing - General","7311","Marketing \ Non-staff advertising","01/12/2017"
"Wolverhampton City Council","http://opendatacommunities.org/id/metropolitan-district-council/wolverhampton","FACEBK VU2N3FW9R2","384.60","Communications & Marketing - General","7311","Marketing \ Non-staff advertising","01/12/2017"
"Wolverhampton City Council","http://opendatacommunities.org/id/metropolitan-district-council/wolverhampton","SNAP    GEOFILTERS","54.46","Communications & Marketing - General","7311","Marketing \ Non-staff advertising","01/12/2017"
"Wolverhampton City Council","http://opendatacommunities.org/id/metropolitan-district-council/wolverhampton","FACEBK NFT98DAB82","78.90","Communications & Marketing - General","7311","Marketing \ Non-staff advertising","01/12/2017"
"Wolverhampton City Council","http://opendatacommunities.org/id/metropolitan-district-council/wolverhampton","ENVATOMARKET38448071","13.12","Communications & Marketing - General","5815","Computing - Purchase of Software","01/12/2017"
"Wolverhampton City Council","http://opendatacommunities.org/id/metropolitan-district-council/wolverhampton","WOLVERHAMPTON CC","6.50","IMPACT","7523","Car Allowances","01/12/2017"
"Wolverhampton City Council","http://opendatacommunities.org/id/metropolitan-district-council/wolverhampton","THE POST OFFICE","220.00","IMPACT","9402","Comms - Postage","01/12/2017"
"Wolverhampton City Council","http://opendatacommunities.org/id/metropolitan-district-council/wolverhampton","HOME BARGAINS WOLVERHA","18.30","Aldersley Leisure Village","5251","Equipment - Purchase","01/12/2017"
"Wolverhampton City Council","http://opendatacommunities.org/id/metropolitan-district-council/wolverhampton","WWW.PREMIER-STORAGE.CO","119.88","Central Baths","5021","Furniture","01/12/2017"
"Wolverhampton City Council","http://opendatacommunities.org/id/metropolitan-district-council/wolverhampton","Trainline","287.74","Admin & Support","4112","Public Transport","01/12/2017"
"Wolverhampton City Council","http://opendatacommunities.org/id/metropolitan-district-council/wolverhampton","NATWEST BANK","100.00","EIP Locality 8","6011","Grant Payments","01/12/2017"
"Wolverhampton City Council","http://opendatacommunities.org/id/metropolitan-district-council/wolverhampton","ASDA STORE 4351","21.67","Cemeteries","5411","Provisions (Not for resale)","01/12/2017"
"Wolverhampton City Council","http://opendatacommunities.org/id/metropolitan-district-council/wolverhampton","MARKS&SPENCER PLC","52.00","LAC Education Team (LACE)","5411","Catering","01/12/2017"
"Wolverhampton City Council","http://opendatacommunities.org/id/metropolitan-district-council/wolverhampton","POST OFFICE COUNTER","65.00","LAC Education Team (LACE)","9402","Comms - Postage","01/12/2017"
"Wolverhampton City Council","http://opendatacommunities.org/id/metropolitan-district-council/wolverhampton","TESCO STORE 3290","31.25","Cemeteries","5411","Provisions (Not for resale)","01/12/2017"
"Wolverhampton City Council","http://opendatacommunities.org/id/metropolitan-district-council/wolverhampton","HOME BARGAINS TELFORD","31.06","Cemeteries","5251","Equipment - Purchase","01/12/2017"
"Wolverhampton City Council","http://opendatacommunities.org/id/metropolitan-district-council/wolverhampton","APPLE ONLINE STORE GBP","199.00","Strategic ICTS (ICT Serv Budget)","5732","Equipment - Purchase","01/12/2017"
"Wolverhampton City Council","http://opendatacommunities.org/id/metropolitan-district-council/wolverhampton","APPLE ONLINE STORE GBP","957.50","Strategic ICTS (ICT Serv Budget)","5732","Equipment - Purchase","01/12/2017"
"Wolverhampton City Council","http://opendatacommunities.org/id/metropolitan-district-council/wolverhampton","ASDA HOME SHOPPING","1.62","Upper Pendeford Farm Childrens Home","5411","Provisions (Not for resale)","01/12/2017"
"Wolverhampton City Council","http://opendatacommunities.org/id/metropolitan-district-council/wolverhampton","ASDA HOME SHOPPING","250.41","Upper Pendeford Farm Childrens Home","5411","Provisions (Not for resale)","01/12/2017"
"Wolverhampton City Council","http://opendatacommunities.org/id/metropolitan-district-council/wolverhampton","Virgin Trains","73.80","LAC Team","4112","Public Transport","01/12/2017"
"Wolverhampton City Council","http://opendatacommunities.org/id/metropolitan-district-council/wolverhampton","PAYPAL  TOPBEDDINGC","6.66","LAC Transitions Team","5611","Client Allowances","01/12/2017"
"Wolverhampton City Council","http://opendatacommunities.org/id/metropolitan-district-council/wolverhampton","Virgin Trains","154.00","Strategic Asset Management - General","4112","Public Transport","01/12/2017"
"Wolverhampton City Council","http://opendatacommunities.org/id/metropolitan-district-council/wolverhampton","B&M RETAIL","166.67","Civic Centre","5310","Equipment - Purchase","01/12/2017"
"Wolverhampton City Council","http://opendatacommunities.org/id/metropolitan-district-council/wolverhampton","LEAR PRINT","3.00","EIP Locality 1","2741","Stationery","01/12/2017"
"Wolverhampton City Council","http://opendatacommunities.org/id/metropolitan-district-council/wolverhampton","AMAZON.CO.UK","51.38","SEN Sensory Inclusion","5942","Equipment - Purchase","01/12/2017"
"Wolverhampton City Council","http://opendatacommunities.org/id/metropolitan-district-council/wolverhampton","BRITISH STANDARDS","114.00","Environmental Health - Pub Prot - Gen","7399","Equipment - Purchase","01/12/2017"
"Wolverhampton City Council","http://opendatacommunities.org/id/metropolitan-district-council/wolverhampton","REGISTRARS OFFICE","10.00","CIN/CP Social Work Unit - Area 4","8299","Section 17","01/12/2017"
"Wolverhampton City Council","http://opendatacommunities.org/id/metropolitan-district-council/wolverhampton","TOOLSTATION LTD","16.27","Education Catering - General Overheads","5251","Equipment - R & M","01/12/2017"
"Wolverhampton City Council","http://opendatacommunities.org/id/metropolitan-district-council/wolverhampton","Trainline","187.17","Legal Services","4112","Public Transport","01/12/2017"
"Wolverhampton City Council","http://opendatacommunities.org/id/metropolitan-district-council/wolverhampton","WWW.SEVERNTRENTSEARCHE","325.00","Disposal Costs","4900","Services - Professional Fees","01/12/2017"
"Wolverhampton City Council","http://opendatacommunities.org/id/metropolitan-district-council/wolverhampton","J VAN VLIET BIRMINGHAM","99.55","Creative Studies Delivery Area","5399","Materials for resale","01/12/2017"
"Wolverhampton City Council","http://opendatacommunities.org/id/metropolitan-district-council/wolverhampton","Amazon UK Marketplace","29.84","EIP Locality 7","5942","Grant Payments","01/12/2017"
"Wolverhampton City Council","http://opendatacommunities.org/id/metropolitan-district-council/wolverhampton","Virgin Trains","19.30","Planning","4112","Public Transport","01/12/2017"
"Wolverhampton City Council","http://opendatacommunities.org/id/metropolitan-district-council/wolverhampton","Virgin Trains","108.60","Planning","4112","Public Transport","01/12/2017"
"Wolverhampton City Council","http://opendatacommunities.org/id/metropolitan-district-council/wolverhampton","Virgin Trains","322.50","Scrutiny & Transparency","4112","Public Transport","01/12/2017"
"Wolverhampton City Council","http://opendatacommunities.org/id/metropolitan-district-council/wolverhampton","THE FLOWER STALL","125.00","Mayoral Expenses","5992","Hospitality","01/12/2017"
